Workbook

Sheet Solar
A1: Mes | B1: Ventas 2021 | AC1: Etiquetas | AD1: Puntos | AE1: 360º | AF1: Valores | AG1: Valor | AH1: Separador
A2: Enero | B2: 1561.36 | AC2: 1 | AD2: =360/COUNT(misRayos) -> 30 | AE2: =ROW(AE1)-ROW($AE$1) -> 0 | AF2: =IFERROR(INDEX(misRayos,IF(MOD(TablaSeriesValores[[#This Row],[360º]],misPuntos)=0,NA(),INT(TablaSeriesValores[[#This Row],[360º]]/misPuntos)+1)),0) -> 0 | AG2: =IF(miFila=INT(TablaSeriesValores[[#This Row],[360º]]/misPuntos)+1,TablaSeriesValores[[#This Row],[Valores]],0) -> 0 | AH2: =IF(MOD(TablaSeriesValores[[#This Row],[360º]],misPuntos)=0,miEscala,0) -> 2419
A3: Febrero | B3: 2103.74 | AC3: =AC2 -> 1 | AE3: 1 | AF3: =IFERROR(INDEX(misRayos,IF(MOD(TablaSeriesValores[[#This Row],[360º]],misPuntos)=0,NA(),INT(TablaSeriesValores[[#This Row],[360º]]/misPuntos)+1)),0) -> 1561.36 | AG3: =IF(miFila=INT(TablaSeriesValores[[#This Row],[360º]]/misPuntos)+1,TablaSeriesValores[[#This Row],[Valores]],0) -> 0 | AH3: =IF(MOD(TablaSeriesValores[[#This Row],[360º]],misPuntos)=0,miEscala,0) -> 0
A4: Marzo | B4: 1526.58 | AC4: =AC3 -> 1 | AE4: 2 | AF4: =IFERROR(INDEX(misRayos,IF(MOD(TablaSeriesValores[[#This Row],[360º]],misPuntos)=0,NA(),INT(TablaSeriesValores[[#This Row],[360º]]/misPuntos)+1)),0) -> 1561.36 | AG4: =IF(miFila=INT(TablaSeriesValores[[#This Row],[360º]]/misPuntos)+1,TablaSeriesValores[[#This Row],[Valores]],0) -> 0 | AH4: =IF(MOD(TablaSeriesValores[[#This Row],[360º]],misPuntos)=0,miEscala,0) -> 0
A5: Abril | B5: 1678.48 | AC5: 1 | AE5: 3 | AF5: =IFERROR(INDEX(misRayos,IF(MOD(TablaSeriesValores[[#This Row],[360º]],misPuntos)=0,NA(),INT(TablaSeriesValores[[#This Row],[360º]]/misPuntos)+1)),0) -> 1561.36 | AG5: =IF(miFila=INT(TablaSeriesValores[[#This Row],[360º]]/misPuntos)+1,TablaSeriesValores[[#This Row],[Valores]],0) -> 0 | AH5: =IF(MOD(TablaSeriesValores[[#This Row],[360º]],misPuntos)=0,miEscala,0) -> 0
A6: Mayo | B6: 1978.13 | AC6: 1 | AE6: 4 | AF6: =IFERROR(INDEX(misRayos,IF(MOD(TablaSeriesValores[[#This Row],[360º]],misPuntos)=0,NA(),INT(TablaSeriesValores[[#This Row],[360º]]/misPuntos)+1)),0) -> 1561.36 | AG6: =IF(miFila=INT(TablaSeriesValores[[#This Row],[360º]]/misPuntos)+1,TablaSeriesValores[[#This Row],[Valores]],0) -> 0 | AH6: =IF(MOD(TablaSeriesValores[[#This Row],[360º]],misPuntos)=0,miEscala,0) -> 0
A7: Junio | B7: 1321.26 | AC7: 1 | AE7: 5 | AF7: =IFERROR(INDEX(misRayos,IF(MOD(TablaSeriesValores[[#This Row],[360º]],misPuntos)=0,NA(),INT(TablaSeriesValores[[#This Row],[360º]]/misPuntos)+1)),0) -> 1561.36 | AG7: =IF(miFila=INT(TablaSeriesValores[[#This Row],[360º]]/misPuntos)+1,TablaSeriesValores[[#This Row],[Valores]],0) -> 0 | AH7: =IF(MOD(TablaSeriesValores[[#This Row],[360º]],misPuntos)=0,miEscala,0) -> 0
A8: Julio | B8: 1635.96 | AC8: 1 | AE8: 6 | AF8: =IFERROR(INDEX(misRayos,IF(MOD(TablaSeriesValores[[#This Row],[360º]],misPuntos)=0,NA(),INT(TablaSeriesValores[[#This Row],[360º]]/misPuntos)+1)),0) -> 1561.36 | AG8: =IF(miFila=INT(TablaSeriesValores[[#This Row],[360º]]/misPuntos)+1,TablaSeriesValores[[#This Row],[Valores]],0) -> 0 | AH8: =IF(MOD(TablaSeriesValores[[#This Row],[360º]],misPuntos)=0,miEscala,0) -> 0
A9: Agosto | B9: 1682.65 | AC9: 1 | AE9: 7 | AF9: =IFERROR(INDEX(misRayos,IF(MOD(TablaSeriesValores[[#This Row],[360º]],misPuntos)=0,NA(),INT(TablaSeriesValores[[#This Row],[360º]]/misPuntos)+1)),0) -> 1561.36 | AG9: =IF(miFila=INT(TablaSeriesValores[[#This Row],[360º]]/misPuntos)+1,TablaSeriesValores[[#This Row],[Valores]],0) -> 0 | AH9: =IF(MOD(TablaSeriesValores[[#This Row],[360º]],misPuntos)=0,miEscala,0) -> 0
A10: Septiembre | B10: 1154.75 | AC10: 1 | AE10: 8 | AF10: =IFERROR(INDEX(misRayos,IF(MOD(TablaSeriesValores[[#This Row],[360º]],misPuntos)=0,NA(),INT(TablaSeriesValores[[#This Row],[360º]]/misPuntos)+1)),0) -> 1561.36 | AG10: =IF(miFila=INT(TablaSeriesValores[[#This Row],[360º]]/misPuntos)+1,TablaSeriesValores[[#This Row],[Valores]],0) -> 0 | AH10: =IF(MOD(TablaSeriesValores[[#This Row],[360º]],misPuntos)=0,miEscala,0) -> 0
A11: Octubre | B11: 1259.19 | AC11: 1 | AE11: 9 | AF11: =IFERROR(INDEX(misRayos,IF(MOD(TablaSeriesValores[[#This Row],[360º]],misPuntos)=0,NA(),INT(TablaSeriesValores[[#This Row],[360º]]/misPuntos)+1)),0) -> 1561.36 | AG11: =IF(miFila=INT(TablaSeriesValores[[#This Row],[360º]]/misPuntos)+1,TablaSeriesValores[[#This Row],[Valores]],0) -> 0 | AH11: =IF(MOD(TablaSeriesValores[[#This Row],[360º]],misPuntos)=0,miEscala,0) -> 0
A12: Noviembre | B12: 1145.73 | AC12: 1 | AE12: 10 | AF12: =IFERROR(INDEX(misRayos,IF(MOD(TablaSeriesValores[[#This Row],[360º]],misPuntos)=0,NA(),INT(TablaSeriesValores[[#This Row],[360º]]/misPuntos)+1)),0) -> 1561.36 | AG12: =IF(miFila=INT(TablaSeriesValores[[#This Row],[360º]]/misPuntos)+1,TablaSeriesValores[[#This Row],[Valores]],0) -> 0 | AH12: =IF(MOD(TablaSeriesValores[[#This Row],[360º]],misPuntos)=0,miEscala,0) -> 0
A13: Diciembre | B13: 1404.21 | AC13: 1 | AE13: 11 | AF13: =IFERROR(INDEX(misRayos,IF(MOD(TablaSeriesValores[[#This Row],[360º]],misPuntos)=0,NA(),INT(TablaSeriesValores[[#This Row],[360º]]/misPuntos)+1)),0) -> 1561.36 | AG13: =IF(miFila=INT(TablaSeriesValores[[#This Row],[360º]]/misPuntos)+1,TablaSeriesValores[[#This Row],[Valores]],0) -> 0 | AH13: =IF(MOD(TablaSeriesValores[[#This Row],[360º]],misPuntos)=0,miEscala,0) -> 0
A14: Total | B14: =SUBTOTAL(109,TablaSolar[Ventas 2021]) -> 18452.04 | AE14: 12 | AF14: =IFERROR(INDEX(misRayos,IF(MOD(TablaSeriesValores[[#This Row],[360º]],misPuntos)=0,NA(),INT(TablaSeriesValores[[#This Row],[360º]]/misPuntos)+1)),0) -> 1561.36 | AG14: =IF(miFila=INT(TablaSeriesValores[[#This Row],[360º]]/misPuntos)+1,TablaSeriesValores[[#This Row],[Valores]],0) -> 0 | AH14: =IF(MOD(TablaSeriesValores[[#This Row],[360º]],misPuntos)=0,miEscala,0) -> 0
AE15: 13 | AF15: =IFERROR(INDEX(misRayos,IF(MOD(TablaSeriesValores[[#This Row],[360º]],misPuntos)=0,NA(),INT(TablaSeriesValores[[#This Row],[360º]]/misPuntos)+1)),0) -> 1561.36 | AG15: =IF(miFila=INT(TablaSeriesValores[[#This Row],[360º]]/misPuntos)+1,TablaSeriesValores[[#This Row],[Valores]],0) -> 0 | AH15: =IF(MOD(TablaSeriesValores[[#This Row],[360º]],misPuntos)=0,miEscala,0) -> 0
AE16: 14 | AF16: =IFERROR(INDEX(misRayos,IF(MOD(TablaSeriesValores[[#This Row],[360º]],misPuntos)=0,NA(),INT(TablaSeriesValores[[#This Row],[360º]]/misPuntos)+1)),0) -> 1561.36 | AG16: =IF(miFila=INT(TablaSeriesValores[[#This Row],[360º]]/misPuntos)+1,TablaSeriesValores[[#This Row],[Valores]],0) -> 0 | AH16: =IF(MOD(TablaSeriesValores[[#This Row],[360º]],misPuntos)=0,miEscala,0) -> 0
AE17: 15 | AF17: =IFERROR(INDEX(misRayos,IF(MOD(TablaSeriesValores[[#This Row],[360º]],misPuntos)=0,NA(),INT(TablaSeriesValores[[#This Row],[360º]]/misPuntos)+1)),0) -> 1561.36 | AG17: =IF(miFila=INT(TablaSeriesValores[[#This Row],[360º]]/misPuntos)+1,TablaSeriesValores[[#This Row],[Valores]],0) -> 0 | AH17: =IF(MOD(TablaSeriesValores[[#This Row],[360º]],misPuntos)=0,miEscala,0) -> 0
AE18: 16 | AF18: =IFERROR(INDEX(misRayos,IF(MOD(TablaSeriesValores[[#This Row],[360º]],misPuntos)=0,NA(),INT(TablaSeriesValores[[#This Row],[360º]]/misPuntos)+1)),0) -> 1561.36 | AG18: =IF(miFila=INT(TablaSeriesValores[[#This Row],[360º]]/misPuntos)+1,TablaSeriesValores[[#This Row],[Valores]],0) -> 0 | AH18: =IF(MOD(TablaSeriesValores[[#This Row],[360º]],misPuntos)=0,miEscala,0) -> 0
AE19: 17 | AF19: =IFERROR(INDEX(misRayos,IF(MOD(TablaSeriesValores[[#This Row],[360º]],misPuntos)=0,NA(),INT(TablaSeriesValores[[#This Row],[360º]]/misPuntos)+1)),0) -> 1561.36 | AG19: =IF(miFila=INT(TablaSeriesValores[[#This Row],[360º]]/misPuntos)+1,TablaSeriesValores[[#This Row],[Valores]],0) -> 0 | AH19: =IF(MOD(TablaSeriesValores[[#This Row],[360º]],misPuntos)=0,miEscala,0) -> 0
AE20: 18 | AF20: =IFERROR(INDEX(misRayos,IF(MOD(TablaSeriesValores[[#This Row],[360º]],misPuntos)=0,NA(),INT(TablaSeriesValores[[#This Row],[360º]]/misPuntos)+1)),0) -> 1561.36 | AG20: =IF(miFila=INT(TablaSeriesValores[[#This Row],[360º]]/misPuntos)+1,TablaSeriesValores[[#This Row],[Valores]],0) -> 0 | AH20: =IF(MOD(TablaSeriesValores[[#This Row],[360º]],misPuntos)=0,miEscala,0) -> 0
AE21: 19 | AF21: =IFERROR(INDEX(misRayos,IF(MOD(TablaSeriesValores[[#This Row],[360º]],misPuntos)=0,NA(),INT(TablaSeriesValores[[#This Row],[360º]]/misPuntos)+1)),0) -> 1561.36 | AG21: =IF(miFila=INT(TablaSeriesValores[[#This Row],[360º]]/misPuntos)+1,TablaSeriesValores[[#This Row],[Valores]],0) -> 0 | AH21: =IF(MOD(TablaSeriesValores[[#This Row],[360º]],misPuntos)=0,miEscala,0) -> 0
AE22: 20 | AF22: =IFERROR(INDEX(misRayos,IF(MOD(TablaSeriesValores[[#This Row],[360º]],misPuntos)=0,NA(),INT(TablaSeriesValores[[#This Row],[360º]]/misPuntos)+1)),0) -> 1561.36 | AG22: =IF(miFila=INT(TablaSeriesValores[[#This Row],[360º]]/misPuntos)+1,TablaSeriesValores[[#This Row],[Valores]],0) -> 0 | AH22: =IF(MOD(TablaSeriesValores[[#This Row],[360º]],misPuntos)=0,miEscala,0) -> 0
AE23: 21 | AF23: =IFERROR(INDEX(misRayos,IF(MOD(TablaSeriesValores[[#This Row],[360º]],misPuntos)=0,NA(),INT(TablaSeriesValores[[#This Row],[360º]]/misPuntos)+1)),0) -> 1561.36 | AG23: =IF(miFila=INT(TablaSeriesValores[[#This Row],[360º]]/misPuntos)+1,TablaSeriesValores[[#This Row],[Valores]],0) -> 0 | AH23: =IF(MOD(TablaSeriesValores[[#This Row],[360º]],misPuntos)=0,miEscala,0) -> 0
AE24: 22 | AF24: =IFERROR(INDEX(misRayos,IF(MOD(TablaSeriesValores[[#This Row],[360º]],misPuntos)=0,NA(),INT(TablaSeriesValores[[#This Row],[360º]]/misPuntos)+1)),0) -> 1561.36 | AG24: =IF(miFila=INT(TablaSeriesValores[[#This Row],[360º]]/misPuntos)+1,TablaSeriesValores[[#This Row],[Valores]],0) -> 0 | AH24: =IF(MOD(TablaSeriesValores[[#This Row],[360º]],misPuntos)=0,miEscala,0) -> 0
AE25: 23 | AF25: =IFERROR(INDEX(misRayos,IF(MOD(TablaSeriesValores[[#This Row],[360º]],misPuntos)=0,NA(),INT(TablaSeriesValores[[#This Row],[360º]]/misPuntos)+1)),0) -> 1561.36 | AG25: =IF(miFila=INT(TablaSeriesValores[[#This Row],[360º]]/misPuntos)+1,TablaSeriesValores[[#This Row],[Valores]],0) -> 0 | AH25: =IF(MOD(TablaSeriesValores[[#This Row],[360º]],misPuntos)=0,miEscala,0) -> 0
AE26: 24 | AF26: =IFERROR(INDEX(misRayos,IF(MOD(TablaSeriesValores[[#This Row],[360º]],misPuntos)=0,NA(),INT(TablaSeriesValores[[#This Row],[360º]]/misPuntos)+1)),0) -> 1561.36 | AG26: =IF(miFila=INT(TablaSeriesValores[[#This Row],[360º]]/misPuntos)+1,TablaSeriesValores[[#This Row],[Valores]],0) -> 0 | AH26: =IF(MOD(TablaSeriesValores[[#This Row],[360º]],misPuntos)=0,miEscala,0) -> 0
AE27: 25 | AF27: =IFERROR(INDEX(misRayos,IF(MOD(TablaSeriesValores[[#This Row],[360º]],misPuntos)=0,NA(),INT(TablaSeriesValores[[#This Row],[360º]]/misPuntos)+1)),0) -> 1561.36 | AG27: =IF(miFila=INT(TablaSeriesValores[[#This Row],[360º]]/misPuntos)+1,TablaSeriesValores[[#This Row],[Valores]],0) -> 0 | AH27: =IF(MOD(TablaSeriesValores[[#This Row],[360º]],misPuntos)=0,miEscala,0) -> 0
C28: TÍTULO: | D28: =TablaSolar[[#Headers],[Ventas 2021]] -> Ventas 2021 | AE28: 26 | AF28: =IFERROR(INDEX(misRayos,IF(MOD(TablaSeriesValores[[#This Row],[360º]],misPuntos)=0,NA(),INT(TablaSeriesValores[[#This Row],[360º]]/misPuntos)+1)),0) -> 1561.36 | AG28: =IF(miFila=INT(TablaSeriesValores[[#This Row],[360º]]/misPuntos)+1,TablaSeriesValores[[#This Row],[Valores]],0) -> 0 | AH28: =IF(MOD(TablaSeriesValores[[#This Row],[360º]],misPuntos)=0,miEscala,0) -> 0
C29: AUTOR: | D29: #ExcelPedroWave | AE29: 27 | AF29: =IFERROR(INDEX(misRayos,IF(MOD(TablaSeriesValores[[#This Row],[360º]],misPuntos)=0,NA(),INT(TablaSeriesValores[[#This Row],[360º]]/misPuntos)+1)),0) -> 1561.36 | AG29: =IF(miFila=INT(TablaSeriesValores[[#This Row],[360º]]/misPuntos)+1,TablaSeriesValores[[#This Row],[Valores]],0) -> 0 | AH29: =IF(MOD(TablaSeriesValores[[#This Row],[360º]],misPuntos)=0,miEscala,0) -> 0
C30: BLOG: | D30: Cómo hacer un gráfico solar | #ExcelPedroWave | AE30: 28 | AF30: =IFERROR(INDEX(misRayos,IF(MOD(TablaSeriesValores[[#This Row],[360º]],misPuntos)=0,NA(),INT(TablaSeriesValores[[#This Row],[360º]]/misPuntos)+1)),0) -> 1561.36 | AG30: =IF(miFila=INT(TablaSeriesValores[[#This Row],[360º]]/misPuntos)+1,TablaSeriesValores[[#This Row],[Valores]],0) -> 0 | AH30: =IF(MOD(TablaSeriesValores[[#This Row],[360º]],misPuntos)=0,miEscala,0) -> 0
C31: COPYRIGHT: | D31: Creative Commons — Atribución-NoComercial-CompartirIgual 3.0 No portada | AE31: 29 | AF31: =IFERROR(INDEX(misRayos,IF(MOD(TablaSeriesValores[[#This Row],[360º]],misPuntos)=0,NA(),INT(TablaSeriesValores[[#This Row],[360º]]/misPuntos)+1)),0) -> 1561.36 | AG31: =IF(miFila=INT(TablaSeriesValores[[#This Row],[360º]]/misPuntos)+1,TablaSeriesValores[[#This Row],[Valores]],0) -> 0 | AH31: =IF(MOD(TablaSeriesValores[[#This Row],[360º]],misPuntos)=0,miEscala,0) -> 0
C32: DATOS: | D32: Aviso legal y política de privacidad | ESIOS electricidad · datos · transparencia (ree.es) | AE32: 30 | AF32: =IFERROR(INDEX(misRayos,IF(MOD(TablaSeriesValores[[#This Row],[360º]],misPuntos)=0,NA(),INT(TablaSeriesValores[[#This Row],[360º]]/misPuntos)+1)),0) -> 0 | AG32: =IF(miFila=INT(TablaSeriesValores[[#This Row],[360º]]/misPuntos)+1,TablaSeriesValores[[#This Row],[Valores]],0) -> 0 | AH32: =IF(MOD(TablaSeriesValores[[#This Row],[360º]],misPuntos)=0,miEscala,0) -> 2419
AE33: 31 | AF33: =IFERROR(INDEX(misRayos,IF(MOD(TablaSeriesValores[[#This Row],[360º]],misPuntos)=0,NA(),INT(TablaSeriesValores[[#This Row],[360º]]/misPuntos)+1)),0) -> 2103.74 | AG33: =IF(miFila=INT(TablaSeriesValores[[#This Row],[360º]]/misPuntos)+1,TablaSeriesValores[[#This Row],[Valores]],0) -> 0 | AH33: =IF(MOD(TablaSeriesValores[[#This Row],[360º]],misPuntos)=0,miEscala,0) -> 0
AE34: 32 | AF34: =IFERROR(INDEX(misRayos,IF(MOD(TablaSeriesValores[[#This Row],[360º]],misPuntos)=0,NA(),INT(TablaSeriesValores[[#This Row],[360º]]/misPuntos)+1)),0) -> 2103.74 | AG34: =IF(miFila=INT(TablaSeriesValores[[#This Row],[360º]]/misPuntos)+1,TablaSeriesValores[[#This Row],[Valores]],0) -> 0 | AH34: =IF(MOD(TablaSeriesValores[[#This Row],[360º]],misPuntos)=0,miEscala,0) -> 0
AE35: 33 | AF35: =IFERROR(INDEX(misRayos,IF(MOD(TablaSeriesValores[[#This Row],[360º]],misPuntos)=0,NA(),INT(TablaSeriesValores[[#This Row],[360º]]/misPuntos)+1)),0) -> 2103.74 | AG35: =IF(miFila=INT(TablaSeriesValores[[#This Row],[360º]]/misPuntos)+1,TablaSeriesValores[[#This Row],[Valores]],0) -> 0 | AH35: =IF(MOD(TablaSeriesValores[[#This Row],[360º]],misPuntos)=0,miEscala,0) -> 0
AE36: 34 | AF36: =IFERROR(INDEX(misRayos,IF(MOD(TablaSeriesValores[[#This Row],[360º]],misPuntos)=0,NA(),INT(TablaSeriesValores[[#This Row],[360º]]/misPuntos)+1)),0) -> 2103.74 | AG36: =IF(miFila=INT(TablaSeriesValores[[#This Row],[360º]]/misPuntos)+1,TablaSeriesValores[[#This Row],[Valores]],0) -> 0 | AH36: =IF(MOD(TablaSeriesValores[[#This Row],[360º]],misPuntos)=0,miEscala,0) -> 0
AE37: 35 | AF37: =IFERROR(INDEX(misRayos,IF(MOD(TablaSeriesValores[[#This Row],[360º]],misPuntos)=0,NA(),INT(TablaSeriesValores[[#This Row],[360º]]/misPuntos)+1)),0) -> 2103.74 | AG37: =IF(miFila=INT(TablaSeriesValores[[#This Row],[360º]]/misPuntos)+1,TablaSeriesValores[[#This Row],[Valores]],0) -> 0 | AH37: =IF(MOD(TablaSeriesValores[[#This Row],[360º]],misPuntos)=0,miEscala,0) -> 0
AE38: 36 | AF38: =IFERROR(INDEX(misRayos,IF(MOD(TablaSeriesValores[[#This Row],[360º]],misPuntos)=0,NA(),INT(TablaSeriesValores[[#This Row],[360º]]/misPuntos)+1)),0) -> 2103.74 | AG38: =IF(miFila=INT(TablaSeriesValores[[#This Row],[360º]]/misPuntos)+1,TablaSeriesValores[[#This Row],[Valores]],0) -> 0 | AH38: =IF(MOD(TablaSeriesValores[[#This Row],[360º]],misPuntos)=0,miEscala,0) -> 0
AE39: 37 | AF39: =IFERROR(INDEX(misRayos,IF(MOD(TablaSeriesValores[[#This Row],[360º]],misPuntos)=0,NA(),INT(TablaSeriesValores[[#This Row],[360º]]/misPuntos)+1)),0) -> 2103.74 | AG39: =IF(miFila=INT(TablaSeriesValores[[#This Row],[360º]]/misPuntos)+1,TablaSeriesValores[[#This Row],[Valores]],0) -> 0 | AH39: =IF(MOD(TablaSeriesValores[[#This Row],[360º]],misPuntos)=0,miEscala,0) -> 0
AE40: 38 | AF40: =IFERROR(INDEX(misRayos,IF(MOD(TablaSeriesValores[[#This Row],[360º]],misPuntos)=0,NA(),INT(TablaSeriesValores[[#This Row],[360º]]/misPuntos)+1)),0) -> 2103.74 | AG40: =IF(miFila=INT(TablaSeriesValores[[#This Row],[360º]]/misPuntos)+1,TablaSeriesValores[[#This Row],[Valores]],0) -> 0 | AH40: =IF(MOD(TablaSeriesValores[[#This Row],[360º]],misPuntos)=0,miEscala,0) -> 0
AE41: 39 | AF41: =IFERROR(INDEX(misRayos,IF(MOD(TablaSeriesValores[[#This Row],[360º]],misPuntos)=0,NA(),INT(TablaSeriesValores[[#This Row],[360º]]/misPuntos)+1)),0) -> 2103.74 | AG41: =IF(miFila=INT(TablaSeriesValores[[#This Row],[360º]]/misPuntos)+1,TablaSeriesValores[[#This Row],[Valores]],0) -> 0 | AH41: =IF(MOD(TablaSeriesValores[[#This Row],[360º]],misPuntos)=0,miEscala,0) -> 0
AE42: 40 | AF42: =IFERROR(INDEX(misRayos,IF(MOD(TablaSeriesValores[[#This Row],[360º]],misPuntos)=0,NA(),INT(TablaSeriesValores[[#This Row],[360º]]/misPuntos)+1)),0) -> 2103.74 | AG42: =IF(miFila=INT(TablaSeriesValores[[#This Row],[360º]]/misPuntos)+1,TablaSeriesValores[[#This Row],[Valores]],0) -> 0 | AH42: =IF(MOD(TablaSeriesValores[[#This Row],[360º]],misPuntos)=0,miEscala,0) -> 0
AE43: 41 | AF43: =IFERROR(INDEX(misRayos,IF(MOD(TablaSeriesValores[[#This Row],[360º]],misPuntos)=0,NA(),INT(TablaSeriesValores[[#This Row],[360º]]/misPuntos)+1)),0) -> 2103.74 | AG43: =IF(miFila=INT(TablaSeriesValores[[#This Row],[360º]]/misPuntos)+1,TablaSeriesValores[[#This Row],[Valores]],0) -> 0 | AH43: =IF(MOD(TablaSeriesValores[[#This Row],[360º]],misPuntos)=0,miEscala,0) -> 0
AE44: 42 | AF44: =IFERROR(INDEX(misRayos,IF(MOD(TablaSeriesValores[[#This Row],[360º]],misPuntos)=0,NA(),INT(TablaSeriesValores[[#This Row],[360º]]/misPuntos)+1)),0) -> 2103.74 | AG44: =IF(miFila=INT(TablaSeriesValores[[#This Row],[360º]]/misPuntos)+1,TablaSeriesValores[[#This Row],[Valores]],0) -> 0 | AH44: =IF(MOD(TablaSeriesValores[[#This Row],[360º]],misPuntos)=0,miEscala,0) -> 0
AE45: 43 | AF45: =IFERROR(INDEX(misRayos,IF(MOD(TablaSeriesValores[[#This Row],[360º]],misPuntos)=0,NA(),INT(TablaSeriesValores[[#This Row],[360º]]/misPuntos)+1)),0) -> 2103.74 | AG45: =IF(miFila=INT(TablaSeriesValores[[#This Row],[360º]]/misPuntos)+1,TablaSeriesValores[[#This Row],[Valores]],0) -> 0 | AH45: =IF(MOD(TablaSeriesValores[[#This Row],[360º]],misPuntos)=0,miEscala,0) -> 0
AE46: 44 | AF46: =IFERROR(INDEX(misRayos,IF(MOD(TablaSeriesValores[[#This Row],[360º]],misPuntos)=0,NA(),INT(TablaSeriesValores[[#This Row],[360º]]/misPuntos)+1)),0) -> 2103.74 | AG46: =IF(miFila=INT(TablaSeriesValores[[#This Row],[360º]]/misPuntos)+1,TablaSeriesValores[[#This Row],[Valores]],0) -> 0 | AH46: =IF(MOD(TablaSeriesValores[[#This Row],[360º]],misPuntos)=0,miEscala,0) -> 0
AE47: 45 | AF47: =IFERROR(INDEX(misRayos,IF(MOD(TablaSeriesValores[[#This Row],[360º]],misPuntos)=0,NA(),INT(TablaSeriesValores[[#This Row],[360º]]/misPuntos)+1)),0) -> 2103.74 | AG47: =IF(miFila=INT(TablaSeriesValores[[#This Row],[360º]]/misPuntos)+1,TablaSeriesValores[[#This Row],[Valores]],0) -> 0 | AH47: =IF(MOD(TablaSeriesValores[[#This Row],[360º]],misPuntos)=0,miEscala,0) -> 0
AE48: 46 | AF48: =IFERROR(INDEX(misRayos,IF(MOD(TablaSeriesValores[[#This Row],[360º]],misPuntos)=0,NA(),INT(TablaSeriesValores[[#This Row],[360º]]/misPuntos)+1)),0) -> 2103.74 | AG48: =IF(miFila=INT(TablaSeriesValores[[#This Row],[360º]]/misPuntos)+1,TablaSeriesValores[[#This Row],[Valores]],0) -> 0 | AH48: =IF(MOD(TablaSeriesValores[[#This Row],[360º]],misPuntos)=0,miEscala,0) -> 0
AE49: 47 | AF49: =IFERROR(INDEX(misRayos,IF(MOD(TablaSeriesValores[[#This Row],[360º]],misPuntos)=0,NA(),INT(TablaSeriesValores[[#This Row],[360º]]/misPuntos)+1)),0) -> 2103.74 | AG49: =IF(miFila=INT(TablaSeriesValores[[#This Row],[360º]]/misPuntos)+1,TablaSeriesValores[[#This Row],[Valores]],0) -> 0 | AH49: =IF(MOD(TablaSeriesValores[[#This Row],[360º]],misPuntos)=0,miEscala,0) -> 0
AE50: 48 | AF50: =IFERROR(INDEX(misRayos,IF(MOD(TablaSeriesValores[[#This Row],[360º]],misPuntos)=0,NA(),INT(TablaSeriesValores[[#This Row],[360º]]/misPuntos)+1)),0) -> 2103.74 | AG50: =IF(miFila=INT(TablaSeriesValores[[#This Row],[360º]]/misPuntos)+1,TablaSeriesValores[[#This Row],[Valores]],0) -> 0 | AH50: =IF(MOD(TablaSeriesValores[[#This Row],[360º]],misPuntos)=0,miEscala,0) -> 0
AE51: 49 | AF51: =IFERROR(INDEX(misRayos,IF(MOD(TablaSeriesValores[[#This Row],[360º]],misPuntos)=0,NA(),INT(TablaSeriesValores[[#This Row],[360º]]/misPuntos)+1)),0) -> 2103.74 | AG51: =IF(miFila=INT(TablaSeriesValores[[#This Row],[360º]]/misPuntos)+1,TablaSeriesValores[[#This Row],[Valores]],0) -> 0 | AH51: =IF(MOD(TablaSeriesValores[[#This Row],[360º]],misPuntos)=0,miEscala,0) -> 0
AE52: 50 | AF52: =IFERROR(INDEX(misRayos,IF(MOD(TablaSeriesValores[[#This Row],[360º]],misPuntos)=0,NA(),INT(TablaSeriesValores[[#This Row],[360º]]/misPuntos)+1)),0) -> 2103.74 | AG52: =IF(miFila=INT(TablaSeriesValores[[#This Row],[360º]]/misPuntos)+1,TablaSeriesValores[[#This Row],[Valores]],0) -> 0 | AH52: =IF(MOD(TablaSeriesValores[[#This Row],[360º]],misPuntos)=0,miEscala,0) -> 0
AE53: 51 | AF53: =IFERROR(INDEX(misRayos,IF(MOD(TablaSeriesValores[[#This Row],[360º]],misPuntos)=0,NA(),INT(TablaSeriesValores[[#This Row],[360º]]/misPuntos)+1)),0) -> 2103.74 | AG53: =IF(miFila=INT(TablaSeriesValores[[#This Row],[360º]]/misPuntos)+1,TablaSeriesValores[[#This Row],[Valores]],0) -> 0 | AH53: =IF(MOD(TablaSeriesValores[[#This Row],[360º]],misPuntos)=0,miEscala,0) -> 0
AE54: 52 | AF54: =IFERROR(INDEX(misRayos,IF(MOD(TablaSeriesValores[[#This Row],[360º]],misPuntos)=0,NA(),INT(TablaSeriesValores[[#This Row],[360º]]/misPuntos)+1)),0) -> 2103.74 | AG54: =IF(miFila=INT(TablaSeriesValores[[#This Row],[360º]]/misPuntos)+1,TablaSeriesValores[[#This Row],[Valores]],0) -> 0 | AH54: =IF(MOD(TablaSeriesValores[[#This Row],[360º]],misPuntos)=0,miEscala,0) -> 0
AE55: 53 | AF55: =IFERROR(INDEX(misRayos,IF(MOD(TablaSeriesValores[[#This Row],[360º]],misPuntos)=0,NA(),INT(TablaSeriesValores[[#This Row],[360º]]/misPuntos)+1)),0) -> 2103.74 | AG55: =IF(miFila=INT(TablaSeriesValores[[#This Row],[360º]]/misPuntos)+1,TablaSeriesValores[[#This Row],[Valores]],0) -> 0 | AH55: =IF(MOD(TablaSeriesValores[[#This Row],[360º]],misPuntos)=0,miEscala,0) -> 0
AE56: 54 | AF56: =IFERROR(INDEX(misRayos,IF(MOD(TablaSeriesValores[[#This Row],[360º]],misPuntos)=0,NA(),INT(TablaSeriesValores[[#This Row],[360º]]/misPuntos)+1)),0) -> 2103.74 | AG56: =IF(miFila=INT(TablaSeriesValores[[#This Row],[360º]]/misPuntos)+1,TablaSeriesValores[[#This Row],[Valores]],0) -> 0 | AH56: =IF(MOD(TablaSeriesValores[[#This Row],[360º]],misPuntos)=0,miEscala,0) -> 0
AE57: 55 | AF57: =IFERROR(INDEX(misRayos,IF(MOD(TablaSeriesValores[[#This Row],[360º]],misPuntos)=0,NA(),INT(TablaSeriesValores[[#This Row],[360º]]/misPuntos)+1)),0) -> 2103.74 | AG57: =IF(miFila=INT(TablaSeriesValores[[#This Row],[360º]]/misPuntos)+1,TablaSeriesValores[[#This Row],[Valores]],0) -> 0 | AH57: =IF(MOD(TablaSeriesValores[[#This Row],[360º]],misPuntos)=0,miEscala,0) -> 0
AE58: 56 | AF58: =IFERROR(INDEX(misRayos,IF(MOD(TablaSeriesValores[[#This Row],[360º]],misPuntos)=0,NA(),INT(TablaSeriesValores[[#This Row],[360º]]/misPuntos)+1)),0) -> 2103.74 | AG58: =IF(miFila=INT(TablaSeriesValores[[#This Row],[360º]]/misPuntos)+1,TablaSeriesValores[[#This Row],[Valores]],0) -> 0 | AH58: =IF(MOD(TablaSeriesValores[[#This Row],[360º]],misPuntos)=0,miEscala,0) -> 0
AE59: 57 | AF59: =IFERROR(INDEX(misRayos,IF(MOD(TablaSeriesValores[[#This Row],[360º]],misPuntos)=0,NA(),INT(TablaSeriesValores[[#This Row],[360º]]/misPuntos)+1)),0) -> 2103.74 | AG59: =IF(miFila=INT(TablaSeriesValores[[#This Row],[360º]]/misPuntos)+1,TablaSeriesValores[[#This Row],[Valores]],0) -> 0 | AH59: =IF(MOD(TablaSeriesValores[[#This Row],[360º]],misPuntos)=0,miEscala,0) -> 0
AE60: 58 | AF60: =IFERROR(INDEX(misRayos,IF(MOD(TablaSeriesValores[[#This Row],[360º]],misPuntos)=0,NA(),INT(TablaSeriesValores[[#This Row],[360º]]/misPuntos)+1)),0) -> 2103.74 | AG60: =IF(miFila=INT(TablaSeriesValores[[#This Row],[360º]]/misPuntos)+1,TablaSeriesValores[[#This Row],[Valores]],0) -> 0 | AH60: =IF(MOD(TablaSeriesValores[[#This Row],[360º]],misPuntos)=0,miEscala,0) -> 0
AE61: 59 | AF61: =IFERROR(INDEX(misRayos,IF(MOD(TablaSeriesValores[[#This Row],[360º]],misPuntos)=0,NA(),INT(TablaSeriesValores[[#This Row],[360º]]/misPuntos)+1)),0) -> 2103.74 | AG61: =IF(miFila=INT(TablaSeriesValores[[#This Row],[360º]]/misPuntos)+1,TablaSeriesValores[[#This Row],[Valores]],0) -> 0 | AH61: =IF(MOD(TablaSeriesValores[[#This Row],[360º]],misPuntos)=0,miEscala,0) -> 0
AE62: 60 | AF62: =IFERROR(INDEX(misRayos,IF(MOD(TablaSeriesValores[[#This Row],[360º]],misPuntos)=0,NA(),INT(TablaSeriesValores[[#This Row],[360º]]/misPuntos)+1)),0) -> 0 | AG62: =IF(miFila=INT(TablaSeriesValores[[#This Row],[360º]]/misPuntos)+1,TablaSeriesValores[[#This Row],[Valores]],0) -> 0 | AH62: =IF(MOD(TablaSeriesValores[[#This Row],[360º]],misPuntos)=0,miEscala,0) -> 2419
AE63: 61 | AF63: =IFERROR(INDEX(misRayos,IF(MOD(TablaSeriesValores[[#This Row],[360º]],misPuntos)=0,NA(),INT(TablaSeriesValores[[#This Row],[360º]]/misPuntos)+1)),0) -> 1526.58 | AG63: =IF(miFila=INT(TablaSeriesValores[[#This Row],[360º]]/misPuntos)+1,TablaSeriesValores[[#This Row],[Valores]],0) -> 0 | AH63: =IF(MOD(TablaSeriesValores[[#This Row],[360º]],misPuntos)=0,miEscala,0) -> 0
AE64: 62 | AF64: =IFERROR(INDEX(misRayos,IF(MOD(TablaSeriesValores[[#This Row],[360º]],misPuntos)=0,NA(),INT(TablaSeriesValores[[#This Row],[360º]]/misPuntos)+1)),0) -> 1526.58 | AG64: =IF(miFila=INT(TablaSeriesValores[[#This Row],[360º]]/misPuntos)+1,TablaSeriesValores[[#This Row],[Valores]],0) -> 0 | AH64: =IF(MOD(TablaSeriesValores[[#This Row],[360º]],misPuntos)=0,miEscala,0) -> 0
AE65: 63 | AF65: =IFERROR(INDEX(misRayos,IF(MOD(TablaSeriesValores[[#This Row],[360º]],misPuntos)=0,NA(),INT(TablaSeriesValores[[#This Row],[360º]]/misPuntos)+1)),0) -> 1526.58 | AG65: =IF(miFila=INT(TablaSeriesValores[[#This Row],[360º]]/misPuntos)+1,TablaSeriesValores[[#This Row],[Valores]],0) -> 0 | AH65: =IF(MOD(TablaSeriesValores[[#This Row],[360º]],misPuntos)=0,miEscala,0) -> 0
AE66: =ROW(AE65)-ROW($AE$1) -> 64 | AF66: =IFERROR(INDEX(misRayos,IF(MOD(TablaSeriesValores[[#This Row],[360º]],misPuntos)=0,NA(),INT(TablaSeriesValores[[#This Row],[360º]]/misPuntos)+1)),0) -> 1526.58 | AG66: =IF(miFila=INT(TablaSeriesValores[[#This Row],[360º]]/misPuntos)+1,TablaSeriesValores[[#This Row],[Valores]],0) -> 0 | AH66: =IF(MOD(TablaSeriesValores[[#This Row],[360º]],misPuntos)=0,miEscala,0) -> 0
AE67: 65 | AF67: =IFERROR(INDEX(misRayos,IF(MOD(TablaSeriesValores[[#This Row],[360º]],misPuntos)=0,NA(),INT(TablaSeriesValores[[#This Row],[360º]]/misPuntos)+1)),0) -> 1526.58 | AG67: =IF(miFila=INT(TablaSeriesValores[[#This Row],[360º]]/misPuntos)+1,TablaSeriesValores[[#This Row],[Valores]],0) -> 0 | AH67: =IF(MOD(TablaSeriesValores[[#This Row],[360º]],misPuntos)=0,miEscala,0) -> 0
AE68: 66 | AF68: =IFERROR(INDEX(misRayos,IF(MOD(TablaSeriesValores[[#This Row],[360º]],misPuntos)=0,NA(),INT(TablaSeriesValores[[#This Row],[360º]]/misPuntos)+1)),0) -> 1526.58 | AG68: =IF(miFila=INT(TablaSeriesValores[[#This Row],[360º]]/misPuntos)+1,TablaSeriesValores[[#This Row],[Valores]],0) -> 0 | AH68: =IF(MOD(TablaSeriesValores[[#This Row],[360º]],misPuntos)=0,miEscala,0) -> 0
AE69: 67 | AF69: =IFERROR(INDEX(misRayos,IF(MOD(TablaSeriesValores[[#This Row],[360º]],misPuntos)=0,NA(),INT(TablaSeriesValores[[#This Row],[360º]]/misPuntos)+1)),0) -> 1526.58 | AG69: =IF(miFila=INT(TablaSeriesValores[[#This Row],[360º]]/misPuntos)+1,TablaSeriesValores[[#This Row],[Valores]],0) -> 0 | AH69: =IF(MOD(TablaSeriesValores[[#This Row],[360º]],misPuntos)=0,miEscala,0) -> 0
AE70: 68 | AF70: =IFERROR(INDEX(misRayos,IF(MOD(TablaSeriesValores[[#This Row],[360º]],misPuntos)=0,NA(),INT(TablaSeriesValores[[#This Row],[360º]]/misPuntos)+1)),0) -> 1526.58 | AG70: =IF(miFila=INT(TablaSeriesValores[[#This Row],[360º]]/misPuntos)+1,TablaSeriesValores[[#This Row],[Valores]],0) -> 0 | AH70: =IF(MOD(TablaSeriesValores[[#This Row],[360º]],misPuntos)=0,miEscala,0) -> 0
AE71: 69 | AF71: =IFERROR(INDEX(misRayos,IF(MOD(TablaSeriesValores[[#This Row],[360º]],misPuntos)=0,NA(),INT(TablaSeriesValores[[#This Row],[360º]]/misPuntos)+1)),0) -> 1526.58 | AG71: =IF(miFila=INT(TablaSeriesValores[[#This Row],[360º]]/misPuntos)+1,TablaSeriesValores[[#This Row],[Valores]],0) -> 0 | AH71: =IF(MOD(TablaSeriesValores[[#This Row],[360º]],misPuntos)=0,miEscala,0) -> 0
AE72: 70 | AF72: =IFERROR(INDEX(misRayos,IF(MOD(TablaSeriesValores[[#This Row],[360º]],misPuntos)=0,NA(),INT(TablaSeriesValores[[#This Row],[360º]]/misPuntos)+1)),0) -> 1526.58 | AG72: =IF(miFila=INT(TablaSeriesValores[[#This Row],[360º]]/misPuntos)+1,TablaSeriesValores[[#This Row],[Valores]],0) -> 0 | AH72: =IF(MOD(TablaSeriesValores[[#This Row],[360º]],misPuntos)=0,miEscala,0) -> 0
AE73: 71 | AF73: =IFERROR(INDEX(misRayos,IF(MOD(TablaSeriesValores[[#This Row],[360º]],misPuntos)=0,NA(),INT(TablaSeriesValores[[#This Row],[360º]]/misPuntos)+1)),0) -> 1526.58 | AG73: =IF(miFila=INT(TablaSeriesValores[[#This Row],[360º]]/misPuntos)+1,TablaSeriesValores[[#This Row],[Valores]],0) -> 0 | AH73: =IF(MOD(TablaSeriesValores[[#This Row],[360º]],misPuntos)=0,miEscala,0) -> 0
AE74: 72 | AF74: =IFERROR(INDEX(misRayos,IF(MOD(TablaSeriesValores[[#This Row],[360º]],misPuntos)=0,NA(),INT(TablaSeriesValores[[#This Row],[360º]]/misPuntos)+1)),0) -> 1526.58 | AG74: =IF(miFila=INT(TablaSeriesValores[[#This Row],[360º]]/misPuntos)+1,TablaSeriesValores[[#This Row],[Valores]],0) -> 0 | AH74: =IF(MOD(TablaSeriesValores[[#This Row],[360º]],misPuntos)=0,miEscala,0) -> 0
AE75: 73 | AF75: =IFERROR(INDEX(misRayos,IF(MOD(TablaSeriesValores[[#This Row],[360º]],misPuntos)=0,NA(),INT(TablaSeriesValores[[#This Row],[360º]]/misPuntos)+1)),0) -> 1526.58 | AG75: =IF(miFila=INT(TablaSeriesValores[[#This Row],[360º]]/misPuntos)+1,TablaSeriesValores[[#This Row],[Valores]],0) -> 0 | AH75: =IF(MOD(TablaSeriesValores[[#This Row],[360º]],misPuntos)=0,miEscala,0) -> 0
AE76: 74 | AF76: =IFERROR(INDEX(misRayos,IF(MOD(TablaSeriesValores[[#This Row],[360º]],misPuntos)=0,NA(),INT(TablaSeriesValores[[#This Row],[360º]]/misPuntos)+1)),0) -> 1526.58 | AG76: =IF(miFila=INT(TablaSeriesValores[[#This Row],[360º]]/misPuntos)+1,TablaSeriesValores[[#This Row],[Valores]],0) -> 0 | AH76: =IF(MOD(TablaSeriesValores[[#This Row],[360º]],misPuntos)=0,miEscala,0) -> 0
AE77: 75 | AF77: =IFERROR(INDEX(misRayos,IF(MOD(TablaSeriesValores[[#This Row],[360º]],misPuntos)=0,NA(),INT(TablaSeriesValores[[#This Row],[360º]]/misPuntos)+1)),0) -> 1526.58 | AG77: =IF(miFila=INT(TablaSeriesValores[[#This Row],[360º]]/misPuntos)+1,TablaSeriesValores[[#This Row],[Valores]],0) -> 0 | AH77: =IF(MOD(TablaSeriesValores[[#This Row],[360º]],misPuntos)=0,miEscala,0) -> 0
AE78: 76 | AF78: =IFERROR(INDEX(misRayos,IF(MOD(TablaSeriesValores[[#This Row],[360º]],misPuntos)=0,NA(),INT(TablaSeriesValores[[#This Row],[360º]]/misPuntos)+1)),0) -> 1526.58 | AG78: =IF(miFila=INT(TablaSeriesValores[[#This Row],[360º]]/misPuntos)+1,TablaSeriesValores[[#This Row],[Valores]],0) -> 0 | AH78: =IF(MOD(TablaSeriesValores[[#This Row],[360º]],misPuntos)=0,miEscala,0) -> 0
AE79: 77 | AF79: =IFERROR(INDEX(misRayos,IF(MOD(TablaSeriesValores[[#This Row],[360º]],misPuntos)=0,NA(),INT(TablaSeriesValores[[#This Row],[360º]]/misPuntos)+1)),0) -> 1526.58 | AG79: =IF(miFila=INT(TablaSeriesValores[[#This Row],[360º]]/misPuntos)+1,TablaSeriesValores[[#This Row],[Valores]],0) -> 0 | AH79: =IF(MOD(TablaSeriesValores[[#This Row],[360º]],misPuntos)=0,miEscala,0) -> 0
AE80: 78 | AF80: =IFERROR(INDEX(misRayos,IF(MOD(TablaSeriesValores[[#This Row],[360º]],misPuntos)=0,NA(),INT(TablaSeriesValores[[#This Row],[360º]]/misPuntos)+1)),0) -> 1526.58 | AG80: =IF(miFila=INT(TablaSeriesValores[[#This Row],[360º]]/misPuntos)+1,TablaSeriesValores[[#This Row],[Valores]],0) -> 0 | AH80: =IF(MOD(TablaSeriesValores[[#This Row],[360º]],misPuntos)=0,miEscala,0) -> 0
AE81: 79 | AF81: =IFERROR(INDEX(misRayos,IF(MOD(TablaSeriesValores[[#This Row],[360º]],misPuntos)=0,NA(),INT(TablaSeriesValores[[#This Row],[360º]]/misPuntos)+1)),0) -> 1526.58 | AG81: =IF(miFila=INT(TablaSeriesValores[[#This Row],[360º]]/misPuntos)+1,TablaSeriesValores[[#This Row],[Valores]],0) -> 0 | AH81: =IF(MOD(TablaSeriesValores[[#This Row],[360º]],misPuntos)=0,miEscala,0) -> 0
AE82: 80 | AF82: =IFERROR(INDEX(misRayos,IF(MOD(TablaSeriesValores[[#This Row],[360º]],misPuntos)=0,NA(),INT(TablaSeriesValores[[#This Row],[360º]]/misPuntos)+1)),0) -> 1526.58 | AG82: =IF(miFila=INT(TablaSeriesValores[[#This Row],[360º]]/misPuntos)+1,TablaSeriesValores[[#This Row],[Valores]],0) -> 0 | AH82: =IF(MOD(TablaSeriesValores[[#This Row],[360º]],misPuntos)=0,miEscala,0) -> 0
AE83: 81 | AF83: =IFERROR(INDEX(misRayos,IF(MOD(TablaSeriesValores[[#This Row],[360º]],misPuntos)=0,NA(),INT(TablaSeriesValores[[#This Row],[360º]]/misPuntos)+1)),0) -> 1526.58 | AG83: =IF(miFila=INT(TablaSeriesValores[[#This Row],[360º]]/misPuntos)+1,TablaSeriesValores[[#This Row],[Valores]],0) -> 0 | AH83: =IF(MOD(TablaSeriesValores[[#This Row],[360º]],misPuntos)=0,miEscala,0) -> 0
AE84: 82 | AF84: =IFERROR(INDEX(misRayos,IF(MOD(TablaSeriesValores[[#This Row],[360º]],misPuntos)=0,NA(),INT(TablaSeriesValores[[#This Row],[360º]]/misPuntos)+1)),0) -> 1526.58 | AG84: =IF(miFila=INT(TablaSeriesValores[[#This Row],[360º]]/misPuntos)+1,TablaSeriesValores[[#This Row],[Valores]],0) -> 0 | AH84: =IF(MOD(TablaSeriesValores[[#This Row],[360º]],misPuntos)=0,miEscala,0) -> 0
AE85: 83 | AF85: =IFERROR(INDEX(misRayos,IF(MOD(TablaSeriesValores[[#This Row],[360º]],misPuntos)=0,NA(),INT(TablaSeriesValores[[#This Row],[360º]]/misPuntos)+1)),0) -> 1526.58 | AG85: =IF(miFila=INT(TablaSeriesValores[[#This Row],[360º]]/misPuntos)+1,TablaSeriesValores[[#This Row],[Valores]],0) -> 0 | AH85: =IF(MOD(TablaSeriesValores[[#This Row],[360º]],misPuntos)=0,miEscala,0) -> 0
AE86: 84 | AF86: =IFERROR(INDEX(misRayos,IF(MOD(TablaSeriesValores[[#This Row],[360º]],misPuntos)=0,NA(),INT(TablaSeriesValores[[#This Row],[360º]]/misPuntos)+1)),0) -> 1526.58 | AG86: =IF(miFila=INT(TablaSeriesValores[[#This Row],[360º]]/misPuntos)+1,TablaSeriesValores[[#This Row],[Valores]],0) -> 0 | AH86: =IF(MOD(TablaSeriesValores[[#This Row],[360º]],misPuntos)=0,miEscala,0) -> 0
AE87: 85 | AF87: =IFERROR(INDEX(misRayos,IF(MOD(TablaSeriesValores[[#This Row],[360º]],misPuntos)=0,NA(),INT(TablaSeriesValores[[#This Row],[360º]]/misPuntos)+1)),0) -> 1526.58 | AG87: =IF(miFila=INT(TablaSeriesValores[[#This Row],[360º]]/misPuntos)+1,TablaSeriesValores[[#This Row],[Valores]],0) -> 0 | AH87: =IF(MOD(TablaSeriesValores[[#This Row],[360º]],misPuntos)=0,miEscala,0) -> 0
AE88: 86 | AF88: =IFERROR(INDEX(misRayos,IF(MOD(TablaSeriesValores[[#This Row],[360º]],misPuntos)=0,NA(),INT(TablaSeriesValores[[#This Row],[360º]]/misPuntos)+1)),0) -> 1526.58 | AG88: =IF(miFila=INT(TablaSeriesValores[[#This Row],[360º]]/misPuntos)+1,TablaSeriesValores[[#This Row],[Valores]],0) -> 0 | AH88: =IF(MOD(TablaSeriesValores[[#This Row],[360º]],misPuntos)=0,miEscala,0) -> 0
AE89: 87 | AF89: =IFERROR(INDEX(misRayos,IF(MOD(TablaSeriesValores[[#This Row],[360º]],misPuntos)=0,NA(),INT(TablaSeriesValores[[#This Row],[360º]]/misPuntos)+1)),0) -> 1526.58 | AG89: =IF(miFila=INT(TablaSeriesValores[[#This Row],[360º]]/misPuntos)+1,TablaSeriesValores[[#This Row],[Valores]],0) -> 0 | AH89: =IF(MOD(TablaSeriesValores[[#This Row],[360º]],misPuntos)=0,miEscala,0) -> 0
AE90: 88 | AF90: =IFERROR(INDEX(misRayos,IF(MOD(TablaSeriesValores[[#This Row],[360º]],misPuntos)=0,NA(),INT(TablaSeriesValores[[#This Row],[360º]]/misPuntos)+1)),0) -> 1526.58 | AG90: =IF(miFila=INT(TablaSeriesValores[[#This Row],[360º]]/misPuntos)+1,TablaSeriesValores[[#This Row],[Valores]],0) -> 0 | AH90: =IF(MOD(TablaSeriesValores[[#This Row],[360º]],misPuntos)=0,miEscala,0) -> 0
AE91: 89 | AF91: =IFERROR(INDEX(misRayos,IF(MOD(TablaSeriesValores[[#This Row],[360º]],misPuntos)=0,NA(),INT(TablaSeriesValores[[#This Row],[360º]]/misPuntos)+1)),0) -> 1526.58 | AG91: =IF(miFila=INT(TablaSeriesValores[[#This Row],[360º]]/misPuntos)+1,TablaSeriesValores[[#This Row],[Valores]],0) -> 0 | AH91: =IF(MOD(TablaSeriesValores[[#This Row],[360º]],misPuntos)=0,miEscala,0) -> 0
AE92: 90 | AF92: =IFERROR(INDEX(misRayos,IF(MOD(TablaSeriesValores[[#This Row],[360º]],misPuntos)=0,NA(),INT(TablaSeriesValores[[#This Row],[360º]]/misPuntos)+1)),0) -> 0 | AG92: =IF(miFila=INT(TablaSeriesValores[[#This Row],[360º]]/misPuntos)+1,TablaSeriesValores[[#This Row],[Valores]],0) -> 0 | AH92: =IF(MOD(TablaSeriesValores[[#This Row],[360º]],misPuntos)=0,miEscala,0) -> 2419
AE93: 91 | AF93: =IFERROR(INDEX(misRayos,IF(MOD(TablaSeriesValores[[#This Row],[360º]],misPuntos)=0,NA(),INT(TablaSeriesValores[[#This Row],[360º]]/misPuntos)+1)),0) -> 1678.48 | AG93: =IF(miFila=INT(TablaSeriesValores[[#This Row],[360º]]/misPuntos)+1,TablaSeriesValores[[#This Row],[Valores]],0) -> 0 | AH93: =IF(MOD(TablaSeriesValores[[#This Row],[360º]],misPuntos)=0,miEscala,0) -> 0
AE94: 92 | AF94: =IFERROR(INDEX(misRayos,IF(MOD(TablaSeriesValores[[#This Row],[360º]],misPuntos)=0,NA(),INT(TablaSeriesValores[[#This Row],[360º]]/misPuntos)+1)),0) -> 1678.48 | AG94: =IF(miFila=INT(TablaSeriesValores[[#This Row],[360º]]/misPuntos)+1,TablaSeriesValores[[#This Row],[Valores]],0) -> 0 | AH94: =IF(MOD(TablaSeriesValores[[#This Row],[360º]],misPuntos)=0,miEscala,0) -> 0
AE95: 93 | AF95: =IFERROR(INDEX(misRayos,IF(MOD(TablaSeriesValores[[#This Row],[360º]],misPuntos)=0,NA(),INT(TablaSeriesValores[[#This Row],[360º]]/misPuntos)+1)),0) -> 1678.48 | AG95: =IF(miFila=INT(TablaSeriesValores[[#This Row],[360º]]/misPuntos)+1,TablaSeriesValores[[#This Row],[Valores]],0) -> 0 | AH95: =IF(MOD(TablaSeriesValores[[#This Row],[360º]],misPuntos)=0,miEscala,0) -> 0
AE96: 94 | AF96: =IFERROR(INDEX(misRayos,IF(MOD(TablaSeriesValores[[#This Row],[360º]],misPuntos)=0,NA(),INT(TablaSeriesValores[[#This Row],[360º]]/misPuntos)+1)),0) -> 1678.48 | AG96: =IF(miFila=INT(TablaSeriesValores[[#This Row],[360º]]/misPuntos)+1,TablaSeriesValores[[#This Row],[Valores]],0) -> 0 | AH96: =IF(MOD(TablaSeriesValores[[#This Row],[360º]],misPuntos)=0,miEscala,0) -> 0
AE97: 95 | AF97: =IFERROR(INDEX(misRayos,IF(MOD(TablaSeriesValores[[#This Row],[360º]],misPuntos)=0,NA(),INT(TablaSeriesValores[[#This Row],[360º]]/misPuntos)+1)),0) -> 1678.48 | AG97: =IF(miFila=INT(TablaSeriesValores[[#This Row],[360º]]/misPuntos)+1,TablaSeriesValores[[#This Row],[Valores]],0) -> 0 | AH97: =IF(MOD(TablaSeriesValores[[#This Row],[360º]],misPuntos)=0,miEscala,0) -> 0
AE98: 96 | AF98: =IFERROR(INDEX(misRayos,IF(MOD(TablaSeriesValores[[#This Row],[360º]],misPuntos)=0,NA(),INT(TablaSeriesValores[[#This Row],[360º]]/misPuntos)+1)),0) -> 1678.48 | AG98: =IF(miFila=INT(TablaSeriesValores[[#This Row],[360º]]/misPuntos)+1,TablaSeriesValores[[#This Row],[Valores]],0) -> 0 | AH98: =IF(MOD(TablaSeriesValores[[#This Row],[360º]],misPuntos)=0,miEscala,0) -> 0
AE99: 97 | AF99: =IFERROR(INDEX(misRayos,IF(MOD(TablaSeriesValores[[#This Row],[360º]],misPuntos)=0,NA(),INT(TablaSeriesValores[[#This Row],[360º]]/misPuntos)+1)),0) -> 1678.48 | AG99: =IF(miFila=INT(TablaSeriesValores[[#This Row],[360º]]/misPuntos)+1,TablaSeriesValores[[#This Row],[Valores]],0) -> 0 | AH99: =IF(MOD(TablaSeriesValores[[#This Row],[360º]],misPuntos)=0,miEscala,0) -> 0
AE100: 98 | AF100: =IFERROR(INDEX(misRayos,IF(MOD(TablaSeriesValores[[#This Row],[360º]],misPuntos)=0,NA(),INT(TablaSeriesValores[[#This Row],[360º]]/misPuntos)+1)),0) -> 1678.48 | AG100: =IF(miFila=INT(TablaSeriesValores[[#This Row],[360º]]/misPuntos)+1,TablaSeriesValores[[#This Row],[Valores]],0) -> 0 | AH100: =IF(MOD(TablaSeriesValores[[#This Row],[360º]],misPuntos)=0,miEscala,0) -> 0
AE101: 99 | AF101: =IFERROR(INDEX(misRayos,IF(MOD(TablaSeriesValores[[#This Row],[360º]],misPuntos)=0,NA(),INT(TablaSeriesValores[[#This Row],[360º]]/misPuntos)+1)),0) -> 1678.48 | AG101: =IF(miFila=INT(TablaSeriesValores[[#This Row],[360º]]/misPuntos)+1,TablaSeriesValores[[#This Row],[Valores]],0) -> 0 | AH101: =IF(MOD(TablaSeriesValores[[#This Row],[360º]],misPuntos)=0,miEscala,0) -> 0
AE102: 100 | AF102: =IFERROR(INDEX(misRayos,IF(MOD(TablaSeriesValores[[#This Row],[360º]],misPuntos)=0,NA(),INT(TablaSeriesValores[[#This Row],[360º]]/misPuntos)+1)),0) -> 1678.48 | AG102: =IF(miFila=INT(TablaSeriesValores[[#This Row],[360º]]/misPuntos)+1,TablaSeriesValores[[#This Row],[Valores]],0) -> 0 | AH102: =IF(MOD(TablaSeriesValores[[#This Row],[360º]],misPuntos)=0,miEscala,0) -> 0
AE103: 101 | AF103: =IFERROR(INDEX(misRayos,IF(MOD(TablaSeriesValores[[#This Row],[360º]],misPuntos)=0,NA(),INT(TablaSeriesValores[[#This Row],[360º]]/misPuntos)+1)),0) -> 1678.48 | AG103: =IF(miFila=INT(TablaSeriesValores[[#This Row],[360º]]/misPuntos)+1,TablaSeriesValores[[#This Row],[Valores]],0) -> 0 | AH103: =IF(MOD(TablaSeriesValores[[#This Row],[360º]],misPuntos)=0,miEscala,0) -> 0
AE104: 102 | AF104: =IFERROR(INDEX(misRayos,IF(MOD(TablaSeriesValores[[#This Row],[360º]],misPuntos)=0,NA(),INT(TablaSeriesValores[[#This Row],[360º]]/misPuntos)+1)),0) -> 1678.48 | AG104: =IF(miFila=INT(TablaSeriesValores[[#This Row],[360º]]/misPuntos)+1,TablaSeriesValores[[#This Row],[Valores]],0) -> 0 | AH104: =IF(MOD(TablaSeriesValores[[#This Row],[360º]],misPuntos)=0,miEscala,0) -> 0
AE105: 103 | AF105: =IFERROR(INDEX(misRayos,IF(MOD(TablaSeriesValores[[#This Row],[360º]],misPuntos)=0,NA(),INT(TablaSeriesValores[[#This Row],[360º]]/misPuntos)+1)),0) -> 1678.48 | AG105: =IF(miFila=INT(TablaSeriesValores[[#This Row],[360º]]/misPuntos)+1,TablaSeriesValores[[#This Row],[Valores]],0) -> 0 | AH105: =IF(MOD(TablaSeriesValores[[#This Row],[360º]],misPuntos)=0,miEscala,0) -> 0
AE106: 104 | AF106: =IFERROR(INDEX(misRayos,IF(MOD(TablaSeriesValores[[#This Row],[360º]],misPuntos)=0,NA(),INT(TablaSeriesValores[[#This Row],[360º]]/misPuntos)+1)),0) -> 1678.48 | AG106: =IF(miFila=INT(TablaSeriesValores[[#This Row],[360º]]/misPuntos)+1,TablaSeriesValores[[#This Row],[Valores]],0) -> 0 | AH106: =IF(MOD(TablaSeriesValores[[#This Row],[360º]],misPuntos)=0,miEscala,0) -> 0
AE107: 105 | AF107: =IFERROR(INDEX(misRayos,IF(MOD(TablaSeriesValores[[#This Row],[360º]],misPuntos)=0,NA(),INT(TablaSeriesValores[[#This Row],[360º]]/misPuntos)+1)),0) -> 1678.48 | AG107: =IF(miFila=INT(TablaSeriesValores[[#This Row],[360º]]/misPuntos)+1,TablaSeriesValores[[#This Row],[Valores]],0) -> 0 | AH107: =IF(MOD(TablaSeriesValores[[#This Row],[360º]],misPuntos)=0,miEscala,0) -> 0
AE108: 106 | AF108: =IFERROR(INDEX(misRayos,IF(MOD(TablaSeriesValores[[#This Row],[360º]],misPuntos)=0,NA(),INT(TablaSeriesValores[[#This Row],[360º]]/misPuntos)+1)),0) -> 1678.48 | AG108: =IF(miFila=INT(TablaSeriesValores[[#This Row],[360º]]/misPuntos)+1,TablaSeriesValores[[#This Row],[Valores]],0) -> 0 | AH108: =IF(MOD(TablaSeriesValores[[#This Row],[360º]],misPuntos)=0,miEscala,0) -> 0
AE109: 107 | AF109: =IFERROR(INDEX(misRayos,IF(MOD(TablaSeriesValores[[#This Row],[360º]],misPuntos)=0,NA(),INT(TablaSeriesValores[[#This Row],[360º]]/misPuntos)+1)),0) -> 1678.48 | AG109: =IF(miFila=INT(TablaSeriesValores[[#This Row],[360º]]/misPuntos)+1,TablaSeriesValores[[#This Row],[Valores]],0) -> 0 | AH109: =IF(MOD(TablaSeriesValores[[#This Row],[360º]],misPuntos)=0,miEscala,0) -> 0
AE110: 108 | AF110: =IFERROR(INDEX(misRayos,IF(MOD(TablaSeriesValores[[#This Row],[360º]],misPuntos)=0,NA(),INT(TablaSeriesValores[[#This Row],[360º]]/misPuntos)+1)),0) -> 1678.48 | AG110: =IF(miFila=INT(TablaSeriesValores[[#This Row],[360º]]/misPuntos)+1,TablaSeriesValores[[#This Row],[Valores]],0) -> 0 | AH110: =IF(MOD(TablaSeriesValores[[#This Row],[360º]],misPuntos)=0,miEscala,0) -> 0
AE111: 109 | AF111: =IFERROR(INDEX(misRayos,IF(MOD(TablaSeriesValores[[#This Row],[360º]],misPuntos)=0,NA(),INT(TablaSeriesValores[[#This Row],[360º]]/misPuntos)+1)),0) -> 1678.48 | AG111: =IF(miFila=INT(TablaSeriesValores[[#This Row],[360º]]/misPuntos)+1,TablaSeriesValores[[#This Row],[Valores]],0) -> 0 | AH111: =IF(MOD(TablaSeriesValores[[#This Row],[360º]],misPuntos)=0,miEscala,0) -> 0
AE112: 110 | AF112: =IFERROR(INDEX(misRayos,IF(MOD(TablaSeriesValores[[#This Row],[360º]],misPuntos)=0,NA(),INT(TablaSeriesValores[[#This Row],[360º]]/misPuntos)+1)),0) -> 1678.48 | AG112: =IF(miFila=INT(TablaSeriesValores[[#This Row],[360º]]/misPuntos)+1,TablaSeriesValores[[#This Row],[Valores]],0) -> 0 | AH112: =IF(MOD(TablaSeriesValores[[#This Row],[360º]],misPuntos)=0,miEscala,0) -> 0
AE113: 111 | AF113: =IFERROR(INDEX(misRayos,IF(MOD(TablaSeriesValores[[#This Row],[360º]],misPuntos)=0,NA(),INT(TablaSeriesValores[[#This Row],[360º]]/misPuntos)+1)),0) -> 1678.48 | AG113: =IF(miFila=INT(TablaSeriesValores[[#This Row],[360º]]/misPuntos)+1,TablaSeriesValores[[#This Row],[Valores]],0) -> 0 | AH113: =IF(MOD(TablaSeriesValores[[#This Row],[360º]],misPuntos)=0,miEscala,0) -> 0
AE114: 112 | AF114: =IFERROR(INDEX(misRayos,IF(MOD(TablaSeriesValores[[#This Row],[360º]],misPuntos)=0,NA(),INT(TablaSeriesValores[[#This Row],[360º]]/misPuntos)+1)),0) -> 1678.48 | AG114: =IF(miFila=INT(TablaSeriesValores[[#This Row],[360º]]/misPuntos)+1,TablaSeriesValores[[#This Row],[Valores]],0) -> 0 | AH114: =IF(MOD(TablaSeriesValores[[#This Row],[360º]],misPuntos)=0,miEscala,0) -> 0
AE115: 113 | AF115: =IFERROR(INDEX(misRayos,IF(MOD(TablaSeriesValores[[#This Row],[360º]],misPuntos)=0,NA(),INT(TablaSeriesValores[[#This Row],[360º]]/misPuntos)+1)),0) -> 1678.48 | AG115: =IF(miFila=INT(TablaSeriesValores[[#This Row],[360º]]/misPuntos)+1,TablaSeriesValores[[#This Row],[Valores]],0) -> 0 | AH115: =IF(MOD(TablaSeriesValores[[#This Row],[360º]],misPuntos)=0,miEscala,0) -> 0
AE116: 114 | AF116: =IFERROR(INDEX(misRayos,IF(MOD(TablaSeriesValores[[#This Row],[360º]],misPuntos)=0,NA(),INT(TablaSeriesValores[[#This Row],[360º]]/misPuntos)+1)),0) -> 1678.48 | AG116: =IF(miFila=INT(TablaSeriesValores[[#This Row],[360º]]/misPuntos)+1,TablaSeriesValores[[#This Row],[Valores]],0) -> 0 | AH116: =IF(MOD(TablaSeriesValores[[#This Row],[360º]],misPuntos)=0,miEscala,0) -> 0
AE117: 115 | AF117: =IFERROR(INDEX(misRayos,IF(MOD(TablaSeriesValores[[#This Row],[360º]],misPuntos)=0,NA(),INT(TablaSeriesValores[[#This Row],[360º]]/misPuntos)+1)),0) -> 1678.48 | AG117: =IF(miFila=INT(TablaSeriesValores[[#This Row],[360º]]/misPuntos)+1,TablaSeriesValores[[#This Row],[Valores]],0) -> 0 | AH117: =IF(MOD(TablaSeriesValores[[#This Row],[360º]],misPuntos)=0,miEscala,0) -> 0
AE118: 116 | AF118: =IFERROR(INDEX(misRayos,IF(MOD(TablaSeriesValores[[#This Row],[360º]],misPuntos)=0,NA(),INT(TablaSeriesValores[[#This Row],[360º]]/misPuntos)+1)),0) -> 1678.48 | AG118: =IF(miFila=INT(TablaSeriesValores[[#This Row],[360º]]/misPuntos)+1,TablaSeriesValores[[#This Row],[Valores]],0) -> 0 | AH118: =IF(MOD(TablaSeriesValores[[#This Row],[360º]],misPuntos)=0,miEscala,0) -> 0
AE119: 117 | AF119: =IFERROR(INDEX(misRayos,IF(MOD(TablaSeriesValores[[#This Row],[360º]],misPuntos)=0,NA(),INT(TablaSeriesValores[[#This Row],[360º]]/misPuntos)+1)),0) -> 1678.48 | AG119: =IF(miFila=INT(TablaSeriesValores[[#This Row],[360º]]/misPuntos)+1,TablaSeriesValores[[#This Row],[Valores]],0) -> 0 | AH119: =IF(MOD(TablaSeriesValores[[#This Row],[360º]],misPuntos)=0,miEscala,0) -> 0
AE120: 118 | AF120: =IFERROR(INDEX(misRayos,IF(MOD(TablaSeriesValores[[#This Row],[360º]],misPuntos)=0,NA(),INT(TablaSeriesValores[[#This Row],[360º]]/misPuntos)+1)),0) -> 1678.48 | AG120: =IF(miFila=INT(TablaSeriesValores[[#This Row],[360º]]/misPuntos)+1,TablaSeriesValores[[#This Row],[Valores]],0) -> 0 | AH120: =IF(MOD(TablaSeriesValores[[#This Row],[360º]],misPuntos)=0,miEscala,0) -> 0
AE121: 119 | AF121: =IFERROR(INDEX(misRayos,IF(MOD(TablaSeriesValores[[#This Row],[360º]],misPuntos)=0,NA(),INT(TablaSeriesValores[[#This Row],[360º]]/misPuntos)+1)),0) -> 1678.48 | AG121: =IF(miFila=INT(TablaSeriesValores[[#This Row],[360º]]/misPuntos)+1,TablaSeriesValores[[#This Row],[Valores]],0) -> 0 | AH121: =IF(MOD(TablaSeriesValores[[#This Row],[360º]],misPuntos)=0,miEscala,0) -> 0
AE122: 120 | AF122: =IFERROR(INDEX(misRayos,IF(MOD(TablaSeriesValores[[#This Row],[360º]],misPuntos)=0,NA(),INT(TablaSeriesValores[[#This Row],[360º]]/misPuntos)+1)),0) -> 0 | AG122: =IF(miFila=INT(TablaSeriesValores[[#This Row],[360º]]/misPuntos)+1,TablaSeriesValores[[#This Row],[Valores]],0) -> 0 | AH122: =IF(MOD(TablaSeriesValores[[#This Row],[360º]],misPuntos)=0,miEscala,0) -> 2419
AE123: 121 | AF123: =IFERROR(INDEX(misRayos,IF(MOD(TablaSeriesValores[[#This Row],[360º]],misPuntos)=0,NA(),INT(TablaSeriesValores[[#This Row],[360º]]/misPuntos)+1)),0) -> 1978.13 | AG123: =IF(miFila=INT(TablaSeriesValores[[#This Row],[360º]]/misPuntos)+1,TablaSeriesValores[[#This Row],[Valores]],0) -> 1978.13 | AH123: =IF(MOD(TablaSeriesValores[[#This Row],[360º]],misPuntos)=0,miEscala,0) -> 0
AE124: 122 | AF124: =IFERROR(INDEX(misRayos,IF(MOD(TablaSeriesValores[[#This Row],[360º]],misPuntos)=0,NA(),INT(TablaSeriesValores[[#This Row],[360º]]/misPuntos)+1)),0) -> 1978.13 | AG124: =IF(miFila=INT(TablaSeriesValores[[#This Row],[360º]]/misPuntos)+1,TablaSeriesValores[[#This Row],[Valores]],0) -> 1978.13 | AH124: =IF(MOD(TablaSeriesValores[[#This Row],[360º]],misPuntos)=0,miEscala,0) -> 0
AE125: 123 | AF125: =IFERROR(INDEX(misRayos,IF(MOD(TablaSeriesValores[[#This Row],[360º]],misPuntos)=0,NA(),INT(TablaSeriesValores[[#This Row],[360º]]/misPuntos)+1)),0) -> 1978.13 | AG125: =IF(miFila=INT(TablaSeriesValores[[#This Row],[360º]]/misPuntos)+1,TablaSeriesValores[[#This Row],[Valores]],0) -> 1978.13 | AH125: =IF(MOD(TablaSeriesValores[[#This Row],[360º]],misPuntos)=0,miEscala,0) -> 0
AE126: 124 | AF126: =IFERROR(INDEX(misRayos,IF(MOD(TablaSeriesValores[[#This Row],[360º]],misPuntos)=0,NA(),INT(TablaSeriesValores[[#This Row],[360º]]/misPuntos)+1)),0) -> 1978.13 | AG126: =IF(miFila=INT(TablaSeriesValores[[#This Row],[360º]]/misPuntos)+1,TablaSeriesValores[[#This Row],[Valores]],0) -> 1978.13 | AH126: =IF(MOD(TablaSeriesValores[[#This Row],[360º]],misPuntos)=0,miEscala,0) -> 0
AE127: 125 | AF127: =IFERROR(INDEX(misRayos,IF(MOD(TablaSeriesValores[[#This Row],[360º]],misPuntos)=0,NA(),INT(TablaSeriesValores[[#This Row],[360º]]/misPuntos)+1)),0) -> 1978.13 | AG127: =IF(miFila=INT(TablaSeriesValores[[#This Row],[360º]]/misPuntos)+1,TablaSeriesValores[[#This Row],[Valores]],0) -> 1978.13 | AH127: =IF(MOD(TablaSeriesValores[[#This Row],[360º]],misPuntos)=0,miEscala,0) -> 0
AE128: 126 | AF128: =IFERROR(INDEX(misRayos,IF(MOD(TablaSeriesValores[[#This Row],[360º]],misPuntos)=0,NA(),INT(TablaSeriesValores[[#This Row],[360º]]/misPuntos)+1)),0) -> 1978.13 | AG128: =IF(miFila=INT(TablaSeriesValores[[#This Row],[360º]]/misPuntos)+1,TablaSeriesValores[[#This Row],[Valores]],0) -> 1978.13 | AH128: =IF(MOD(TablaSeriesValores[[#This Row],[360º]],misPuntos)=0,miEscala,0) -> 0
AE129: 127 | AF129: =IFERROR(INDEX(misRayos,IF(MOD(TablaSeriesValores[[#This Row],[360º]],misPuntos)=0,NA(),INT(TablaSeriesValores[[#This Row],[360º]]/misPuntos)+1)),0) -> 1978.13 | AG129: =IF(miFila=INT(TablaSeriesValores[[#This Row],[360º]]/misPuntos)+1,TablaSeriesValores[[#This Row],[Valores]],0) -> 1978.13 | AH129: =IF(MOD(TablaSeriesValores[[#This Row],[360º]],misPuntos)=0,miEscala,0) -> 0
AE130: =ROW(AE129)-ROW($AE$1) -> 128 | AF130: =IFERROR(INDEX(misRayos,IF(MOD(TablaSeriesValores[[#This Row],[360º]],misPuntos)=0,NA(),INT(TablaSeriesValores[[#This Row],[360º]]/misPuntos)+1)),0) -> 1978.13 | AG130: =IF(miFila=INT(TablaSeriesValores[[#This Row],[360º]]/misPuntos)+1,TablaSeriesValores[[#This Row],[Valores]],0) -> 1978.13 | AH130: =IF(MOD(TablaSeriesValores[[#This Row],[360º]],misPuntos)=0,miEscala,0) -> 0
AE131: 129 | AF131: =IFERROR(INDEX(misRayos,IF(MOD(TablaSeriesValores[[#This Row],[360º]],misPuntos)=0,NA(),INT(TablaSeriesValores[[#This Row],[360º]]/misPuntos)+1)),0) -> 1978.13 | AG131: =IF(miFila=INT(TablaSeriesValores[[#This Row],[360º]]/misPuntos)+1,TablaSeriesValores[[#This Row],[Valores]],0) -> 1978.13 | AH131: =IF(MOD(TablaSeriesValores[[#This Row],[360º]],misPuntos)=0,miEscala,0) -> 0
AE132: 130 | AF132: =IFERROR(INDEX(misRayos,IF(MOD(TablaSeriesValores[[#This Row],[360º]],misPuntos)=0,NA(),INT(TablaSeriesValores[[#This Row],[360º]]/misPuntos)+1)),0) -> 1978.13 | AG132: =IF(miFila=INT(TablaSeriesValores[[#This Row],[360º]]/misPuntos)+1,TablaSeriesValores[[#This Row],[Valores]],0) -> 1978.13 | AH132: =IF(MOD(TablaSeriesValores[[#This Row],[360º]],misPuntos)=0,miEscala,0) -> 0
AE133: 131 | AF133: =IFERROR(INDEX(misRayos,IF(MOD(TablaSeriesValores[[#This Row],[360º]],misPuntos)=0,NA(),INT(TablaSeriesValores[[#This Row],[360º]]/misPuntos)+1)),0) -> 1978.13 | AG133: =IF(miFila=INT(TablaSeriesValores[[#This Row],[360º]]/misPuntos)+1,TablaSeriesValores[[#This Row],[Valores]],0) -> 1978.13 | AH133: =IF(MOD(TablaSeriesValores[[#This Row],[360º]],misPuntos)=0,miEscala,0) -> 0
AE134: 132 | AF134: =IFERROR(INDEX(misRayos,IF(MOD(TablaSeriesValores[[#This Row],[360º]],misPuntos)=0,NA(),INT(TablaSeriesValores[[#This Row],[360º]]/misPuntos)+1)),0) -> 1978.13 | AG134: =IF(miFila=INT(TablaSeriesValores[[#This Row],[360º]]/misPuntos)+1,TablaSeriesValores[[#This Row],[Valores]],0) -> 1978.13 | AH134: =IF(MOD(TablaSeriesValores[[#This Row],[360º]],misPuntos)=0,miEscala,0) -> 0
AE135: 133 | AF135: =IFERROR(INDEX(misRayos,IF(MOD(TablaSeriesValores[[#This Row],[360º]],misPuntos)=0,NA(),INT(TablaSeriesValores[[#This Row],[360º]]/misPuntos)+1)),0) -> 1978.13 | AG135: =IF(miFila=INT(TablaSeriesValores[[#This Row],[360º]]/misPuntos)+1,TablaSeriesValores[[#This Row],[Valores]],0) -> 1978.13 | AH135: =IF(MOD(TablaSeriesValores[[#This Row],[360º]],misPuntos)=0,miEscala,0) -> 0
AE136: 134 | AF136: =IFERROR(INDEX(misRayos,IF(MOD(TablaSeriesValores[[#This Row],[360º]],misPuntos)=0,NA(),INT(TablaSeriesValores[[#This Row],[360º]]/misPuntos)+1)),0) -> 1978.13 | AG136: =IF(miFila=INT(TablaSeriesValores[[#This Row],[360º]]/misPuntos)+1,TablaSeriesValores[[#This Row],[Valores]],0) -> 1978.13 | AH136: =IF(MOD(TablaSeriesValores[[#This Row],[360º]],misPuntos)=0,miEscala,0) -> 0
AE137: 135 | AF137: =IFERROR(INDEX(misRayos,IF(MOD(TablaSeriesValores[[#This Row],[360º]],misPuntos)=0,NA(),INT(TablaSeriesValores[[#This Row],[360º]]/misPuntos)+1)),0) -> 1978.13 | AG137: =IF(miFila=INT(TablaSeriesValores[[#This Row],[360º]]/misPuntos)+1,TablaSeriesValores[[#This Row],[Valores]],0) -> 1978.13 | AH137: =IF(MOD(TablaSeriesValores[[#This Row],[360º]],misPuntos)=0,miEscala,0) -> 0
AE138: 136 | AF138: =IFERROR(INDEX(misRayos,IF(MOD(TablaSeriesValores[[#This Row],[360º]],misPuntos)=0,NA(),INT(TablaSeriesValores[[#This Row],[360º]]/misPuntos)+1)),0) -> 1978.13 | AG138: =IF(miFila=INT(TablaSeriesValores[[#This Row],[360º]]/misPuntos)+1,TablaSeriesValores[[#This Row],[Valores]],0) -> 1978.13 | AH138: =IF(MOD(TablaSeriesValores[[#This Row],[360º]],misPuntos)=0,miEscala,0) -> 0
AE139: 137 | AF139: =IFERROR(INDEX(misRayos,IF(MOD(TablaSeriesValores[[#This Row],[360º]],misPuntos)=0,NA(),INT(TablaSeriesValores[[#This Row],[360º]]/misPuntos)+1)),0) -> 1978.13 | AG139: =IF(miFila=INT(TablaSeriesValores[[#This Row],[360º]]/misPuntos)+1,TablaSeriesValores[[#This Row],[Valores]],0) -> 1978.13 | AH139: =IF(MOD(TablaSeriesValores[[#This Row],[360º]],misPuntos)=0,miEscala,0) -> 0
AE140: 138 | AF140: =IFERROR(INDEX(misRayos,IF(MOD(TablaSeriesValores[[#This Row],[360º]],misPuntos)=0,NA(),INT(TablaSeriesValores[[#This Row],[360º]]/misPuntos)+1)),0) -> 1978.13 | AG140: =IF(miFila=INT(TablaSeriesValores[[#This Row],[360º]]/misPuntos)+1,TablaSeriesValores[[#This Row],[Valores]],0) -> 1978.13 | AH140: =IF(MOD(TablaSeriesValores[[#This Row],[360º]],misPuntos)=0,miEscala,0) -> 0
AE141: 139 | AF141: =IFERROR(INDEX(misRayos,IF(MOD(TablaSeriesValores[[#This Row],[360º]],misPuntos)=0,NA(),INT(TablaSeriesValores[[#This Row],[360º]]/misPuntos)+1)),0) -> 1978.13 | AG141: =IF(miFila=INT(TablaSeriesValores[[#This Row],[360º]]/misPuntos)+1,TablaSeriesValores[[#This Row],[Valores]],0) -> 1978.13 | AH141: =IF(MOD(TablaSeriesValores[[#This Row],[360º]],misPuntos)=0,miEscala,0) -> 0
AE142: 140 | AF142: =IFERROR(INDEX(misRayos,IF(MOD(TablaSeriesValores[[#This Row],[360º]],misPuntos)=0,NA(),INT(TablaSeriesValores[[#This Row],[360º]]/misPuntos)+1)),0) -> 1978.13 | AG142: =IF(miFila=INT(TablaSeriesValores[[#This Row],[360º]]/misPuntos)+1,TablaSeriesValores[[#This Row],[Valores]],0) -> 1978.13 | AH142: =IF(MOD(TablaSeriesValores[[#This Row],[360º]],misPuntos)=0,miEscala,0) -> 0
AE143: 141 | AF143: =IFERROR(INDEX(misRayos,IF(MOD(TablaSeriesValores[[#This Row],[360º]],misPuntos)=0,NA(),INT(TablaSeriesValores[[#This Row],[360º]]/misPuntos)+1)),0) -> 1978.13 | AG143: =IF(miFila=INT(TablaSeriesValores[[#This Row],[360º]]/misPuntos)+1,TablaSeriesValores[[#This Row],[Valores]],0) -> 1978.13 | AH143: =IF(MOD(TablaSeriesValores[[#This Row],[360º]],misPuntos)=0,miEscala,0) -> 0
AE144: 142 | AF144: =IFERROR(INDEX(misRayos,IF(MOD(TablaSeriesValores[[#This Row],[360º]],misPuntos)=0,NA(),INT(TablaSeriesValores[[#This Row],[360º]]/misPuntos)+1)),0) -> 1978.13 | AG144: =IF(miFila=INT(TablaSeriesValores[[#This Row],[360º]]/misPuntos)+1,TablaSeriesValores[[#This Row],[Valores]],0) -> 1978.13 | AH144: =IF(MOD(TablaSeriesValores[[#This Row],[360º]],misPuntos)=0,miEscala,0) -> 0
AE145: 143 | AF145: =IFERROR(INDEX(misRayos,IF(MOD(TablaSeriesValores[[#This Row],[360º]],misPuntos)=0,NA(),INT(TablaSeriesValores[[#This Row],[360º]]/misPuntos)+1)),0) -> 1978.13 | AG145: =IF(miFila=INT(TablaSeriesValores[[#This Row],[360º]]/misPuntos)+1,TablaSeriesValores[[#This Row],[Valores]],0) -> 1978.13 | AH145: =IF(MOD(TablaSeriesValores[[#This Row],[360º]],misPuntos)=0,miEscala,0) -> 0
AE146: 144 | AF146: =IFERROR(INDEX(misRayos,IF(MOD(TablaSeriesValores[[#This Row],[360º]],misPuntos)=0,NA(),INT(TablaSeriesValores[[#This Row],[360º]]/misPuntos)+1)),0) -> 1978.13 | AG146: =IF(miFila=INT(TablaSeriesValores[[#This Row],[360º]]/misPuntos)+1,TablaSeriesValores[[#This Row],[Valores]],0) -> 1978.13 | AH146: =IF(MOD(TablaSeriesValores[[#This Row],[360º]],misPuntos)=0,miEscala,0) -> 0
AE147: 145 | AF147: =IFERROR(INDEX(misRayos,IF(MOD(TablaSeriesValores[[#This Row],[360º]],misPuntos)=0,NA(),INT(TablaSeriesValores[[#This Row],[360º]]/misPuntos)+1)),0) -> 1978.13 | AG147: =IF(miFila=INT(TablaSeriesValores[[#This Row],[360º]]/misPuntos)+1,TablaSeriesValores[[#This Row],[Valores]],0) -> 1978.13 | AH147: =IF(MOD(TablaSeriesValores[[#This Row],[360º]],misPuntos)=0,miEscala,0) -> 0
AE148: 146 | AF148: =IFERROR(INDEX(misRayos,IF(MOD(TablaSeriesValores[[#This Row],[360º]],misPuntos)=0,NA(),INT(TablaSeriesValores[[#This Row],[360º]]/misPuntos)+1)),0) -> 1978.13 | AG148: =IF(miFila=INT(TablaSeriesValores[[#This Row],[360º]]/misPuntos)+1,TablaSeriesValores[[#This Row],[Valores]],0) -> 1978.13 | AH148: =IF(MOD(TablaSeriesValores[[#This Row],[360º]],misPuntos)=0,miEscala,0) -> 0
AE149: 147 | AF149: =IFERROR(INDEX(misRayos,IF(MOD(TablaSeriesValores[[#This Row],[360º]],misPuntos)=0,NA(),INT(TablaSeriesValores[[#This Row],[360º]]/misPuntos)+1)),0) -> 1978.13 | AG149: =IF(miFila=INT(TablaSeriesValores[[#This Row],[360º]]/misPuntos)+1,TablaSeriesValores[[#This Row],[Valores]],0) -> 1978.13 | AH149: =IF(MOD(TablaSeriesValores[[#This Row],[360º]],misPuntos)=0,miEscala,0) -> 0
AE150: 148 | AF150: =IFERROR(INDEX(misRayos,IF(MOD(TablaSeriesValores[[#This Row],[360º]],misPuntos)=0,NA(),INT(TablaSeriesValores[[#This Row],[360º]]/misPuntos)+1)),0) -> 1978.13 | AG150: =IF(miFila=INT(TablaSeriesValores[[#This Row],[360º]]/misPuntos)+1,TablaSeriesValores[[#This Row],[Valores]],0) -> 1978.13 | AH150: =IF(MOD(TablaSeriesValores[[#This Row],[360º]],misPuntos)=0,miEscala,0) -> 0
AE151: 149 | AF151: =IFERROR(INDEX(misRayos,IF(MOD(TablaSeriesValores[[#This Row],[360º]],misPuntos)=0,NA(),INT(TablaSeriesValores[[#This Row],[360º]]/misPuntos)+1)),0) -> 1978.13 | AG151: =IF(miFila=INT(TablaSeriesValores[[#This Row],[360º]]/misPuntos)+1,TablaSeriesValores[[#This Row],[Valores]],0) -> 1978.13 | AH151: =IF(MOD(TablaSeriesValores[[#This Row],[360º]],misPuntos)=0,miEscala,0) -> 0
AE152: 150 | AF152: =IFERROR(INDEX(misRayos,IF(MOD(TablaSeriesValores[[#This Row],[360º]],misPuntos)=0,NA(),INT(TablaSeriesValores[[#This Row],[360º]]/misPuntos)+1)),0) -> 0 | AG152: =IF(miFila=INT(TablaSeriesValores[[#This Row],[360º]]/misPuntos)+1,TablaSeriesValores[[#This Row],[Valores]],0) -> 0 | AH152: =IF(MOD(TablaSeriesValores[[#This Row],[360º]],misPuntos)=0,miEscala,0) -> 2419
AE153: 151 | AF153: =IFERROR(INDEX(misRayos,IF(MOD(TablaSeriesValores[[#This Row],[360º]],misPuntos)=0,NA(),INT(TablaSeriesValores[[#This Row],[360º]]/misPuntos)+1)),0) -> 1321.26 | AG153: =IF(miFila=INT(TablaSeriesValores[[#This Row],[360º]]/misPuntos)+1,TablaSeriesValores[[#This Row],[Valores]],0) -> 0 | AH153: =IF(MOD(TablaSeriesValores[[#This Row],[360º]],misPuntos)=0,miEscala,0) -> 0
AE154: 152 | AF154: =IFERROR(INDEX(misRayos,IF(MOD(TablaSeriesValores[[#This Row],[360º]],misPuntos)=0,NA(),INT(TablaSeriesValores[[#This Row],[360º]]/misPuntos)+1)),0) -> 1321.26 | AG154: =IF(miFila=INT(TablaSeriesValores[[#This Row],[360º]]/misPuntos)+1,TablaSeriesValores[[#This Row],[Valores]],0) -> 0 | AH154: =IF(MOD(TablaSeriesValores[[#This Row],[360º]],misPuntos)=0,miEscala,0) -> 0
AE155: 153 | AF155: =IFERROR(INDEX(misRayos,IF(MOD(TablaSeriesValores[[#This Row],[360º]],misPuntos)=0,NA(),INT(TablaSeriesValores[[#This Row],[360º]]/misPuntos)+1)),0) -> 1321.26 | AG155: =IF(miFila=INT(TablaSeriesValores[[#This Row],[360º]]/misPuntos)+1,TablaSeriesValores[[#This Row],[Valores]],0) -> 0 | AH155: =IF(MOD(TablaSeriesValores[[#This Row],[360º]],misPuntos)=0,miEscala,0) -> 0
AE156: 154 | AF156: =IFERROR(INDEX(misRayos,IF(MOD(TablaSeriesValores[[#This Row],[360º]],misPuntos)=0,NA(),INT(TablaSeriesValores[[#This Row],[360º]]/misPuntos)+1)),0) -> 1321.26 | AG156: =IF(miFila=INT(TablaSeriesValores[[#This Row],[360º]]/misPuntos)+1,TablaSeriesValores[[#This Row],[Valores]],0) -> 0 | AH156: =IF(MOD(TablaSeriesValores[[#This Row],[360º]],misPuntos)=0,miEscala,0) -> 0
AE157: 155 | AF157: =IFERROR(INDEX(misRayos,IF(MOD(TablaSeriesValores[[#This Row],[360º]],misPuntos)=0,NA(),INT(TablaSeriesValores[[#This Row],[360º]]/misPuntos)+1)),0) -> 1321.26 | AG157: =IF(miFila=INT(TablaSeriesValores[[#This Row],[360º]]/misPuntos)+1,TablaSeriesValores[[#This Row],[Valores]],0) -> 0 | AH157: =IF(MOD(TablaSeriesValores[[#This Row],[360º]],misPuntos)=0,miEscala,0) -> 0
AE158: 156 | AF158: =IFERROR(INDEX(misRayos,IF(MOD(TablaSeriesValores[[#This Row],[360º]],misPuntos)=0,NA(),INT(TablaSeriesValores[[#This Row],[360º]]/misPuntos)+1)),0) -> 1321.26 | AG158: =IF(miFila=INT(TablaSeriesValores[[#This Row],[360º]]/misPuntos)+1,TablaSeriesValores[[#This Row],[Valores]],0) -> 0 | AH158: =IF(MOD(TablaSeriesValores[[#This Row],[360º]],misPuntos)=0,miEscala,0) -> 0
AE159: 157 | AF159: =IFERROR(INDEX(misRayos,IF(MOD(TablaSeriesValores[[#This Row],[360º]],misPuntos)=0,NA(),INT(TablaSeriesValores[[#This Row],[360º]]/misPuntos)+1)),0) -> 1321.26 | AG159: =IF(miFila=INT(TablaSeriesValores[[#This Row],[360º]]/misPuntos)+1,TablaSeriesValores[[#This Row],[Valores]],0) -> 0 | AH159: =IF(MOD(TablaSeriesValores[[#This Row],[360º]],misPuntos)=0,miEscala,0) -> 0
AE160: 158 | AF160: =IFERROR(INDEX(misRayos,IF(MOD(TablaSeriesValores[[#This Row],[360º]],misPuntos)=0,NA(),INT(TablaSeriesValores[[#This Row],[360º]]/misPuntos)+1)),0) -> 1321.26 | AG160: =IF(miFila=INT(TablaSeriesValores[[#This Row],[360º]]/misPuntos)+1,TablaSeriesValores[[#This Row],[Valores]],0) -> 0 | AH160: =IF(MOD(TablaSeriesValores[[#This Row],[360º]],misPuntos)=0,miEscala,0) -> 0
AE161: 159 | AF161: =IFERROR(INDEX(misRayos,IF(MOD(TablaSeriesValores[[#This Row],[360º]],misPuntos)=0,NA(),INT(TablaSeriesValores[[#This Row],[360º]]/misPuntos)+1)),0) -> 1321.26 | AG161: =IF(miFila=INT(TablaSeriesValores[[#This Row],[360º]]/misPuntos)+1,TablaSeriesValores[[#This Row],[Valores]],0) -> 0 | AH161: =IF(MOD(TablaSeriesValores[[#This Row],[360º]],misPuntos)=0,miEscala,0) -> 0
AE162: 160 | AF162: =IFERROR(INDEX(misRayos,IF(MOD(TablaSeriesValores[[#This Row],[360º]],misPuntos)=0,NA(),INT(TablaSeriesValores[[#This Row],[360º]]/misPuntos)+1)),0) -> 1321.26 | AG162: =IF(miFila=INT(TablaSeriesValores[[#This Row],[360º]]/misPuntos)+1,TablaSeriesValores[[#This Row],[Valores]],0) -> 0 | AH162: =IF(MOD(TablaSeriesValores[[#This Row],[360º]],misPuntos)=0,miEscala,0) -> 0
AE163: 161 | AF163: =IFERROR(INDEX(misRayos,IF(MOD(TablaSeriesValores[[#This Row],[360º]],misPuntos)=0,NA(),INT(TablaSeriesValores[[#This Row],[360º]]/misPuntos)+1)),0) -> 1321.26 | AG163: =IF(miFila=INT(TablaSeriesValores[[#This Row],[360º]]/misPuntos)+1,TablaSeriesValores[[#This Row],[Valores]],0) -> 0 | AH163: =IF(MOD(TablaSeriesValores[[#This Row],[360º]],misPuntos)=0,miEscala,0) -> 0
AE164: 162 | AF164: =IFERROR(INDEX(misRayos,IF(MOD(TablaSeriesValores[[#This Row],[360º]],misPuntos)=0,NA(),INT(TablaSeriesValores[[#This Row],[360º]]/misPuntos)+1)),0) -> 1321.26 | AG164: =IF(miFila=INT(TablaSeriesValores[[#This Row],[360º]]/misPuntos)+1,TablaSeriesValores[[#This Row],[Valores]],0) -> 0 | AH164: =IF(MOD(TablaSeriesValores[[#This Row],[360º]],misPuntos)=0,miEscala,0) -> 0
AE165: 163 | AF165: =IFERROR(INDEX(misRayos,IF(MOD(TablaSeriesValores[[#This Row],[360º]],misPuntos)=0,NA(),INT(TablaSeriesValores[[#This Row],[360º]]/misPuntos)+1)),0) -> 1321.26 | AG165: =IF(miFila=INT(TablaSeriesValores[[#This Row],[360º]]/misPuntos)+1,TablaSeriesValores[[#This Row],[Valores]],0) -> 0 | AH165: =IF(MOD(TablaSeriesValores[[#This Row],[360º]],misPuntos)=0,miEscala,0) -> 0
AE166: 164 | AF166: =IFERROR(INDEX(misRayos,IF(MOD(TablaSeriesValores[[#This Row],[360º]],misPuntos)=0,NA(),INT(TablaSeriesValores[[#This Row],[360º]]/misPuntos)+1)),0) -> 1321.26 | AG166: =IF(miFila=INT(TablaSeriesValores[[#This Row],[360º]]/misPuntos)+1,TablaSeriesValores[[#This Row],[Valores]],0) -> 0 | AH166: =IF(MOD(TablaSeriesValores[[#This Row],[360º]],misPuntos)=0,miEscala,0) -> 0
AE167: 165 | AF167: =IFERROR(INDEX(misRayos,IF(MOD(TablaSeriesValores[[#This Row],[360º]],misPuntos)=0,NA(),INT(TablaSeriesValores[[#This Row],[360º]]/misPuntos)+1)),0) -> 1321.26 | AG167: =IF(miFila=INT(TablaSeriesValores[[#This Row],[360º]]/misPuntos)+1,TablaSeriesValores[[#This Row],[Valores]],0) -> 0 | AH167: =IF(MOD(TablaSeriesValores[[#This Row],[360º]],misPuntos)=0,miEscala,0) -> 0
AE168: 166 | AF168: =IFERROR(INDEX(misRayos,IF(MOD(TablaSeriesValores[[#This Row],[360º]],misPuntos)=0,NA(),INT(TablaSeriesValores[[#This Row],[360º]]/misPuntos)+1)),0) -> 1321.26 | AG168: =IF(miFila=INT(TablaSeriesValores[[#This Row],[360º]]/misPuntos)+1,TablaSeriesValores[[#This Row],[Valores]],0) -> 0 | AH168: =IF(MOD(TablaSeriesValores[[#This Row],[360º]],misPuntos)=0,miEscala,0) -> 0
AE169: 167 | AF169: =IFERROR(INDEX(misRayos,IF(MOD(TablaSeriesValores[[#This Row],[360º]],misPuntos)=0,NA(),INT(TablaSeriesValores[[#This Row],[360º]]/misPuntos)+1)),0) -> 1321.26 | AG169: =IF(miFila=INT(TablaSeriesValores[[#This Row],[360º]]/misPuntos)+1,TablaSeriesValores[[#This Row],[Valores]],0) -> 0 | AH169: =IF(MOD(TablaSeriesValores[[#This Row],[360º]],misPuntos)=0,miEscala,0) -> 0
AE170: 168 | AF170: =IFERROR(INDEX(misRayos,IF(MOD(TablaSeriesValores[[#This Row],[360º]],misPuntos)=0,NA(),INT(TablaSeriesValores[[#This Row],[360º]]/misPuntos)+1)),0) -> 1321.26 | AG170: =IF(miFila=INT(TablaSeriesValores[[#This Row],[360º]]/misPuntos)+1,TablaSeriesValores[[#This Row],[Valores]],0) -> 0 | AH170: =IF(MOD(TablaSeriesValores[[#This Row],[360º]],misPuntos)=0,miEscala,0) -> 0
AE171: 169 | AF171: =IFERROR(INDEX(misRayos,IF(MOD(TablaSeriesValores[[#This Row],[360º]],misPuntos)=0,NA(),INT(TablaSeriesValores[[#This Row],[360º]]/misPuntos)+1)),0) -> 1321.26 | AG171: =IF(miFila=INT(TablaSeriesValores[[#This Row],[360º]]/misPuntos)+1,TablaSeriesValores[[#This Row],[Valores]],0) -> 0 | AH171: =IF(MOD(TablaSeriesValores[[#This Row],[360º]],misPuntos)=0,miEscala,0) -> 0
AE172: 170 | AF172: =IFERROR(INDEX(misRayos,IF(MOD(TablaSeriesValores[[#This Row],[360º]],misPuntos)=0,NA(),INT(TablaSeriesValores[[#This Row],[360º]]/misPuntos)+1)),0) -> 1321.26 | AG172: =IF(miFila=INT(TablaSeriesValores[[#This Row],[360º]]/misPuntos)+1,TablaSeriesValores[[#This Row],[Valores]],0) -> 0 | AH172: =IF(MOD(TablaSeriesValores[[#This Row],[360º]],misPuntos)=0,miEscala,0) -> 0
AE173: 171 | AF173: =IFERROR(INDEX(misRayos,IF(MOD(TablaSeriesValores[[#This Row],[360º]],misPuntos)=0,NA(),INT(TablaSeriesValores[[#This Row],[360º]]/misPuntos)+1)),0) -> 1321.26 | AG173: =IF(miFila=INT(TablaSeriesValores[[#This Row],[360º]]/misPuntos)+1,TablaSeriesValores[[#This Row],[Valores]],0) -> 0 | AH173: =IF(MOD(TablaSeriesValores[[#This Row],[360º]],misPuntos)=0,miEscala,0) -> 0
AE174: 172 | AF174: =IFERROR(INDEX(misRayos,IF(MOD(TablaSeriesValores[[#This Row],[360º]],misPuntos)=0,NA(),INT(TablaSeriesValores[[#This Row],[360º]]/misPuntos)+1)),0) -> 1321.26 | AG174: =IF(miFila=INT(TablaSeriesValores[[#This Row],[360º]]/misPuntos)+1,TablaSeriesValores[[#This Row],[Valores]],0) -> 0 | AH174: =IF(MOD(TablaSeriesValores[[#This Row],[360º]],misPuntos)=0,miEscala,0) -> 0
AE175: 173 | AF175: =IFERROR(INDEX(misRayos,IF(MOD(TablaSeriesValores[[#This Row],[360º]],misPuntos)=0,NA(),INT(TablaSeriesValores[[#This Row],[360º]]/misPuntos)+1)),0) -> 1321.26 | AG175: =IF(miFila=INT(TablaSeriesValores[[#This Row],[360º]]/misPuntos)+1,TablaSeriesValores[[#This Row],[Valores]],0) -> 0 | AH175: =IF(MOD(TablaSeriesValores[[#This Row],[360º]],misPuntos)=0,miEscala,0) -> 0
AE176: 174 | AF176: =IFERROR(INDEX(misRayos,IF(MOD(TablaSeriesValores[[#This Row],[360º]],misPuntos)=0,NA(),INT(TablaSeriesValores[[#This Row],[360º]]/misPuntos)+1)),0) -> 1321.26 | AG176: =IF(miFila=INT(TablaSeriesValores[[#This Row],[360º]]/misPuntos)+1,TablaSeriesValores[[#This Row],[Valores]],0) -> 0 | AH176: =IF(MOD(TablaSeriesValores[[#This Row],[360º]],misPuntos)=0,miEscala,0) -> 0
AE177: 175 | AF177: =IFERROR(INDEX(misRayos,IF(MOD(TablaSeriesValores[[#This Row],[360º]],misPuntos)=0,NA(),INT(TablaSeriesValores[[#This Row],[360º]]/misPuntos)+1)),0) -> 1321.26 | AG177: =IF(miFila=INT(TablaSeriesValores[[#This Row],[360º]]/misPuntos)+1,TablaSeriesValores[[#This Row],[Valores]],0) -> 0 | AH177: =IF(MOD(TablaSeriesValores[[#This Row],[360º]],misPuntos)=0,miEscala,0) -> 0
AE178: 176 | AF178: =IFERROR(INDEX(misRayos,IF(MOD(TablaSeriesValores[[#This Row],[360º]],misPuntos)=0,NA(),INT(TablaSeriesValores[[#This Row],[360º]]/misPuntos)+1)),0) -> 1321.26 | AG178: =IF(miFila=INT(TablaSeriesValores[[#This Row],[360º]]/misPuntos)+1,TablaSeriesValores[[#This Row],[Valores]],0) -> 0 | AH178: =IF(MOD(TablaSeriesValores[[#This Row],[360º]],misPuntos)=0,miEscala,0) -> 0
AE179: 177 | AF179: =IFERROR(INDEX(misRayos,IF(MOD(TablaSeriesValores[[#This Row],[360º]],misPuntos)=0,NA(),INT(TablaSeriesValores[[#This Row],[360º]]/misPuntos)+1)),0) -> 1321.26 | AG179: =IF(miFila=INT(TablaSeriesValores[[#This Row],[360º]]/misPuntos)+1,TablaSeriesValores[[#This Row],[Valores]],0) -> 0 | AH179: =IF(MOD(TablaSeriesValores[[#This Row],[360º]],misPuntos)=0,miEscala,0) -> 0
AE180: 178 | AF180: =IFERROR(INDEX(misRayos,IF(MOD(TablaSeriesValores[[#This Row],[360º]],misPuntos)=0,NA(),INT(TablaSeriesValores[[#This Row],[360º]]/misPuntos)+1)),0) -> 1321.26 | AG180: =IF(miFila=INT(TablaSeriesValores[[#This Row],[360º]]/misPuntos)+1,TablaSeriesValores[[#This Row],[Valores]],0) -> 0 | AH180: =IF(MOD(TablaSeriesValores[[#This Row],[360º]],misPuntos)=0,miEscala,0) -> 0
AE181: 179 | AF181: =IFERROR(INDEX(misRayos,IF(MOD(TablaSeriesValores[[#This Row],[360º]],misPuntos)=0,NA(),INT(TablaSeriesValores[[#This Row],[360º]]/misPuntos)+1)),0) -> 1321.26 | AG181: =IF(miFila=INT(TablaSeriesValores[[#This Row],[360º]]/misPuntos)+1,TablaSeriesValores[[#This Row],[Valores]],0) -> 0 | AH181: =IF(MOD(TablaSeriesValores[[#This Row],[360º]],misPuntos)=0,miEscala,0) -> 0
AE182: 180 | AF182: =IFERROR(INDEX(misRayos,IF(MOD(TablaSeriesValores[[#This Row],[360º]],misPuntos)=0,NA(),INT(TablaSeriesValores[[#This Row],[360º]]/misPuntos)+1)),0) -> 0 | AG182: =IF(miFila=INT(TablaSeriesValores[[#This Row],[360º]]/misPuntos)+1,TablaSeriesValores[[#This Row],[Valores]],0) -> 0 | AH182: =IF(MOD(TablaSeriesValores[[#This Row],[360º]],misPuntos)=0,miEscala,0) -> 2419
AE183: 181 | AF183: =IFERROR(INDEX(misRayos,IF(MOD(TablaSeriesValores[[#This Row],[360º]],misPuntos)=0,NA(),INT(TablaSeriesValores[[#This Row],[360º]]/misPuntos)+1)),0) -> 1635.96 | AG183: =IF(miFila=INT(TablaSeriesValores[[#This Row],[360º]]/misPuntos)+1,TablaSeriesValores[[#This Row],[Valores]],0) -> 0 | AH183: =IF(MOD(TablaSeriesValores[[#This Row],[360º]],misPuntos)=0,miEscala,0) -> 0
AE184: 182 | AF184: =IFERROR(INDEX(misRayos,IF(MOD(TablaSeriesValores[[#This Row],[360º]],misPuntos)=0,NA(),INT(TablaSeriesValores[[#This Row],[360º]]/misPuntos)+1)),0) -> 1635.96 | AG184: =IF(miFila=INT(TablaSeriesValores[[#This Row],[360º]]/misPuntos)+1,TablaSeriesValores[[#This Row],[Valores]],0) -> 0 | AH184: =IF(MOD(TablaSeriesValores[[#This Row],[360º]],misPuntos)=0,miEscala,0) -> 0
AE185: 183 | AF185: =IFERROR(INDEX(misRayos,IF(MOD(TablaSeriesValores[[#This Row],[360º]],misPuntos)=0,NA(),INT(TablaSeriesValores[[#This Row],[360º]]/misPuntos)+1)),0) -> 1635.96 | AG185: =IF(miFila=INT(TablaSeriesValores[[#This Row],[360º]]/misPuntos)+1,TablaSeriesValores[[#This Row],[Valores]],0) -> 0 | AH185: =IF(MOD(TablaSeriesValores[[#This Row],[360º]],misPuntos)=0,miEscala,0) -> 0
AE186: 184 | AF186: =IFERROR(INDEX(misRayos,IF(MOD(TablaSeriesValores[[#This Row],[360º]],misPuntos)=0,NA(),INT(TablaSeriesValores[[#This Row],[360º]]/misPuntos)+1)),0) -> 1635.96 | AG186: =IF(miFila=INT(TablaSeriesValores[[#This Row],[360º]]/misPuntos)+1,TablaSeriesValores[[#This Row],[Valores]],0) -> 0 | AH186: =IF(MOD(TablaSeriesValores[[#This Row],[360º]],misPuntos)=0,miEscala,0) -> 0
AE187: 185 | AF187: =IFERROR(INDEX(misRayos,IF(MOD(TablaSeriesValores[[#This Row],[360º]],misPuntos)=0,NA(),INT(TablaSeriesValores[[#This Row],[360º]]/misPuntos)+1)),0) -> 1635.96 | AG187: =IF(miFila=INT(TablaSeriesValores[[#This Row],[360º]]/misPuntos)+1,TablaSeriesValores[[#This Row],[Valores]],0) -> 0 | AH187: =IF(MOD(TablaSeriesValores[[#This Row],[360º]],misPuntos)=0,miEscala,0) -> 0
AE188: 186 | AF188: =IFERROR(INDEX(misRayos,IF(MOD(TablaSeriesValores[[#This Row],[360º]],misPuntos)=0,NA(),INT(TablaSeriesValores[[#This Row],[360º]]/misPuntos)+1)),0) -> 1635.96 | AG188: =IF(miFila=INT(TablaSeriesValores[[#This Row],[360º]]/misPuntos)+1,TablaSeriesValores[[#This Row],[Valores]],0) -> 0 | AH188: =IF(MOD(TablaSeriesValores[[#This Row],[360º]],misPuntos)=0,miEscala,0) -> 0
AE189: 187 | AF189: =IFERROR(INDEX(misRayos,IF(MOD(TablaSeriesValores[[#This Row],[360º]],misPuntos)=0,NA(),INT(TablaSeriesValores[[#This Row],[360º]]/misPuntos)+1)),0) -> 1635.96 | AG189: =IF(miFila=INT(TablaSeriesValores[[#This Row],[360º]]/misPuntos)+1,TablaSeriesValores[[#This Row],[Valores]],0) -> 0 | AH189: =IF(MOD(TablaSeriesValores[[#This Row],[360º]],misPuntos)=0,miEscala,0) -> 0
AE190: 188 | AF190: =IFERROR(INDEX(misRayos,IF(MOD(TablaSeriesValores[[#This Row],[360º]],misPuntos)=0,NA(),INT(TablaSeriesValores[[#This Row],[360º]]/misPuntos)+1)),0) -> 1635.96 | AG190: =IF(miFila=INT(TablaSeriesValores[[#This Row],[360º]]/misPuntos)+1,TablaSeriesValores[[#This Row],[Valores]],0) -> 0 | AH190: =IF(MOD(TablaSeriesValores[[#This Row],[360º]],misPuntos)=0,miEscala,0) -> 0
AE191: 189 | AF191: =IFERROR(INDEX(misRayos,IF(MOD(TablaSeriesValores[[#This Row],[360º]],misPuntos)=0,NA(),INT(TablaSeriesValores[[#This Row],[360º]]/misPuntos)+1)),0) -> 1635.96 | AG191: =IF(miFila=INT(TablaSeriesValores[[#This Row],[360º]]/misPuntos)+1,TablaSeriesValores[[#This Row],[Valores]],0) -> 0 | AH191: =IF(MOD(TablaSeriesValores[[#This Row],[360º]],misPuntos)=0,miEscala,0) -> 0
AE192: 190 | AF192: =IFERROR(INDEX(misRayos,IF(MOD(TablaSeriesValores[[#This Row],[360º]],misPuntos)=0,NA(),INT(TablaSeriesValores[[#This Row],[360º]]/misPuntos)+1)),0) -> 1635.96 | AG192: =IF(miFila=INT(TablaSeriesValores[[#This Row],[360º]]/misPuntos)+1,TablaSeriesValores[[#This Row],[Valores]],0) -> 0 | AH192: =IF(MOD(TablaSeriesValores[[#This Row],[360º]],misPuntos)=0,miEscala,0) -> 0
AE193: 191 | AF193: =IFERROR(INDEX(misRayos,IF(MOD(TablaSeriesValores[[#This Row],[360º]],misPuntos)=0,NA(),INT(TablaSeriesValores[[#This Row],[360º]]/misPuntos)+1)),0) -> 1635.96 | AG193: =IF(miFila=INT(TablaSeriesValores[[#This Row],[360º]]/misPuntos)+1,TablaSeriesValores[[#This Row],[Valores]],0) -> 0 | AH193: =IF(MOD(TablaSeriesValores[[#This Row],[360º]],misPuntos)=0,miEscala,0) -> 0
AE194: =ROW(AE193)-ROW($AE$1) -> 192 | AF194: =IFERROR(INDEX(misRayos,IF(MOD(TablaSeriesValores[[#This Row],[360º]],misPuntos)=0,NA(),INT(TablaSeriesValores[[#This Row],[360º]]/misPuntos)+1)),0) -> 1635.96 | AG194: =IF(miFila=INT(TablaSeriesValores[[#This Row],[360º]]/misPuntos)+1,TablaSeriesValores[[#This Row],[Valores]],0) -> 0 | AH194: =IF(MOD(TablaSeriesValores[[#This Row],[360º]],misPuntos)=0,miEscala,0) -> 0
AE195: 193 | AF195: =IFERROR(INDEX(misRayos,IF(MOD(TablaSeriesValores[[#This Row],[360º]],misPuntos)=0,NA(),INT(TablaSeriesValores[[#This Row],[360º]]/misPuntos)+1)),0) -> 1635.96 | AG195: =IF(miFila=INT(TablaSeriesValores[[#This Row],[360º]]/misPuntos)+1,TablaSeriesValores[[#This Row],[Valores]],0) -> 0 | AH195: =IF(MOD(TablaSeriesValores[[#This Row],[360º]],misPuntos)=0,miEscala,0) -> 0
AE196: 194 | AF196: =IFERROR(INDEX(misRayos,IF(MOD(TablaSeriesValores[[#This Row],[360º]],misPuntos)=0,NA(),INT(TablaSeriesValores[[#This Row],[360º]]/misPuntos)+1)),0) -> 1635.96 | AG196: =IF(miFila=INT(TablaSeriesValores[[#This Row],[360º]]/misPuntos)+1,TablaSeriesValores[[#This Row],[Valores]],0) -> 0 | AH196: =IF(MOD(TablaSeriesValores[[#This Row],[360º]],misPuntos)=0,miEscala,0) -> 0
AE197: 195 | AF197: =IFERROR(INDEX(misRayos,IF(MOD(TablaSeriesValores[[#This Row],[360º]],misPuntos)=0,NA(),INT(TablaSeriesValores[[#This Row],[360º]]/misPuntos)+1)),0) -> 1635.96 | AG197: =IF(miFila=INT(TablaSeriesValores[[#This Row],[360º]]/misPuntos)+1,TablaSeriesValores[[#This Row],[Valores]],0) -> 0 | AH197: =IF(MOD(TablaSeriesValores[[#This Row],[360º]],misPuntos)=0,miEscala,0) -> 0
AE198: 196 | AF198: =IFERROR(INDEX(misRayos,IF(MOD(TablaSeriesValores[[#This Row],[360º]],misPuntos)=0,NA(),INT(TablaSeriesValores[[#This Row],[360º]]/misPuntos)+1)),0) -> 1635.96 | AG198: =IF(miFila=INT(TablaSeriesValores[[#This Row],[360º]]/misPuntos)+1,TablaSeriesValores[[#This Row],[Valores]],0) -> 0 | AH198: =IF(MOD(TablaSeriesValores[[#This Row],[360º]],misPuntos)=0,miEscala,0) -> 0
AE199: 197 | AF199: =IFERROR(INDEX(misRayos,IF(MOD(TablaSeriesValores[[#This Row],[360º]],misPuntos)=0,NA(),INT(TablaSeriesValores[[#This Row],[360º]]/misPuntos)+1)),0) -> 1635.96 | AG199: =IF(miFila=INT(TablaSeriesValores[[#This Row],[360º]]/misPuntos)+1,TablaSeriesValores[[#This Row],[Valores]],0) -> 0 | AH199: =IF(MOD(TablaSeriesValores[[#This Row],[360º]],misPuntos)=0,miEscala,0) -> 0
AE200: 198 | AF200: =IFERROR(INDEX(misRayos,IF(MOD(TablaSeriesValores[[#This Row],[360º]],misPuntos)=0,NA(),INT(TablaSeriesValores[[#This Row],[360º]]/misPuntos)+1)),0) -> 1635.96 | AG200: =IF(miFila=INT(TablaSeriesValores[[#This Row],[360º]]/misPuntos)+1,TablaSeriesValores[[#This Row],[Valores]],0) -> 0 | AH200: =IF(MOD(TablaSeriesValores[[#This Row],[360º]],misPuntos)=0,miEscala,0) -> 0
... 161 more rows
